Workbook

Sheet 今日の名言
I3: =TODAY() -> 2022-05-14 | S3: =I3 -> 44695
AB5: キーワード
AB13: 表示書式
AB14: HGP行書体

Sheet Font_List (hidden)
B1: LAPTOP-P9609JQC | C1: =TODAY() -> 2022-05-14
B3: 【定義済フォント名一覧表】
B5: フォント名 | C5: ="Font_List!B6:B106" -> Font_List!B6:B106
A6: 3 | B6: BIZ UDPゴシック
A7: 4 | B7: BIZ UDP明朝 Medium
A8: 5 | B8: BIZ UDゴシック
A9: 6 | B9: BIZ UD明朝 Medium
A10: 7 | B10: EPSON Pゴシック W6
A11: 8 | B11: EPSON Pゴシック W7
A12: 9 | B12: EPSON ゴシック W6
A13: 10 | B13: EPSON ゴシック W7
A14: 11 | B14: EPSON 太角ゴシック体Ｂ
A15: 12 | B15: EPSON 太丸ゴシック体Ｂ
A16: 13 | B16: HGPｺﾞｼｯｸE
A17: 14 | B17: HGPｺﾞｼｯｸM
A18: 15 | B18: HGP教科書体
A19: 16 | B19: HGP行書体
A20: 17 | B20: HGP創英ﾌﾟﾚｾﾞﾝｽEB
A21: 18 | B21: HGP創英角ｺﾞｼｯｸUB
A22: 19 | B22: HGP創英角ﾎﾟｯﾌﾟ体
A23: 20 | B23: HGP明朝B
A24: 21 | B24: HGP明朝E
A25: 22 | B25: HGSｺﾞｼｯｸE
A26: 23 | B26: HGSｺﾞｼｯｸM
A27: 24 | B27: HGS教科書体
A28: 25 | B28: HGS行書体
A29: 26 | B29: HGS創英ﾌﾟﾚｾﾞﾝｽEB
A30: 27 | B30: HGS創英角ｺﾞｼｯｸUB
A31: 28 | B31: HGS創英角ﾎﾟｯﾌﾟ体
A32: 29 | B32: HGS明朝B
A33: 30 | B33: HGS明朝E
A34: 31 | B34: HGｺﾞｼｯｸE
A35: 32 | B35: HGｺﾞｼｯｸM
A36: 33 | B36: HG丸ｺﾞｼｯｸM-PRO
A37: 34 | B37: HG教科書体
A38: 35 | B38: HG行書体
A39: 36 | B39: HG正楷書体-PRO
A40: 37 | B40: HG創英ﾌﾟﾚｾﾞﾝｽEB
A41: 38 | B41: HG創英角ｺﾞｼｯｸUB
A42: 39 | B42: HG創英角ﾎﾟｯﾌﾟ体
A43: 40 | B43: HG明朝B
A44: 41 | B44: HG明朝E
A45: 42 | B45: Klee One
A46: 43 | B46: Klee One SemiBold
A47: 44 | B47: Meiryo UI
A48: 45 | B48: ＭＳ Ｐゴシック
A49: 46 | B49: ＭＳ Ｐ明朝
A50: 47 | B50: MS UI Gothic
A51: 48 | B51: ＭＳ ゴシック
A52: 49 | B52: ＭＳ 明朝
A53: 50 | B53: UD デジタル 教科書体 N-B
A54: 51 | B54: UD デジタル 教科書体 NK-B
A55: 52 | B55: UD デジタル 教科書体 NK-R
A56: 53 | B56: UD デジタル 教科書体 NP-B
A57: 54 | B57: UD デジタル 教科書体 NP-R
A58: 55 | B58: UD デジタル 教科書体 N-R
A59: 56 | B59: Yu Gothic UI
A60: 57 | B60: Yu Gothic UI Light
A61: 58 | B61: Yu Gothic UI Semibold
A62: 59 | B62: Yu Gothic UI Semilight
A63: 60 | B63: メイリオ
A64: 61 | B64: 游ゴシック
A65: 62 | B65: 游ゴシック Light
A66: 63 | B66: 游ゴシック Medium
A67: 64 | B67: 游明朝
A68: 65 | B68: 游明朝 Demibold
A69: 66 | B69: 游明朝 Light
A70: 67 | B70: Batang
A71: 68 | B71: BatangChe
A72: 69 | B72: DengXian
A73: 70 | B73: DengXian Light
A74: 71 | B74: Dotum
A75: 72 | B75: DotumChe
A76: 73 | B76: FangSong
A77: 74 | B77: Gulim
A78: 75 | B78: GulimChe
A79: 76 | B79: Gungsuh
A80: 77 | B80: GungsuhChe
A81: 78 | B81: KaiTi
A82: 79 | B82: Malgun Gothic
A83: 80 | B83: Malgun Gothic Semilight
A84: 81 | B84: Microsoft GothicNeo
A85: 82 | B85: Microsoft GothicNeo Light
A86: 83 | B86: Microsoft JhengHei
A87: 84 | B87: Microsoft JhengHei Light
A88: 85 | B88: Microsoft JhengHei UI
A89: 86 | B89: Microsoft JhengHei UI Light
A90: 87 | B90: Microsoft YaHei
A91: 88 | B91: Microsoft YaHei Light
A92: 89 | B92: Microsoft YaHei UI
A93: 90 | B93: Microsoft YaHei UI Light
A94: 91 | B94: MingLiU
A95: 92 | B95: MingLiU_HKSCS
A96: 93 | B96: MingLiU_HKSCS-ExtB
A97: 94 | B97: MingLiU-ExtB
A98: 95 | B98: Nanum Brush Script
A99: 96 | B99: Nanum Pen
A100: 97 | B100: NanumGothic
A101: 98 | B101: NanumGothicCoding
A102: 99 | B102: NanumGothicExtraBold
A103: 100 | B103: NanumMyeongjo
A104: 101 | B104: NanumMyeongjoExtraBold
A105: 102 | B105: NSimSun
A106: 103 | B106: PMingLiU
A107: 104 | B107: PMingLiU-ExtB
A108: 105 | B108: SimHei
A109: 106 | B109: SimSun
A110: 107 | B110: SimSun-ExtB
A111: 108 | B111: STCaiyun
A112: 109 | B112: STFangsong
A113: 110 | B113: STHupo
A114: 111 | B114: STKaiti
A115: 112 | B115: STXihei
A116: 113 | B116: STXingkai
A117: 114 | B117: STXinwei
A118: 115 | B118: STZhongsong
A119: 116 | B119: Abadi
A120: 117 | B120: Abadi Extra Light
A121: 118 | B121: Abel
A122: 119 | B122: Abril Fatface
A123: 120 | B123: Agency FB
A124: 121 | B124: Aharoni
A125: 122 | B125: Aldhabi
A126: 123 | B126: Alef
A127: 124 | B127: Aleo
A128: 125 | B128: Aleo Light
A129: 126 | B129: Algerian
A130: 127 | B130: Amasis MT Pro
A131: 128 | B131: Amasis MT Pro Black
A132: 129 | B132: Amasis MT Pro Light
A133: 130 | B133: Amasis MT Pro Medium
A134: 131 | B134: Amatic SC
A135: 132 | B135: Angsana New
A136: 133 | B136: AngsanaUPC
A137: 134 | B137: Anton
A138: 135 | B138: Aparajita
A139: 136 | B139: Arabic Typesetting
A140: 137 | B140: Aref Ruqaa
A141: 138 | B141: Arial
A142: 139 | B142: Arial Black
A143: 140 | B143: Arial Narrow
A144: 141 | B144: Arial Nova
A145: 142 | B145: Arial Nova Cond
A146: 143 | B146: Arial Nova Cond Light
A147: 144 | B147: Arial Nova Light
A148: 145 | B148: Arial Rounded MT Bold
A149: 146 | B149: Assistant
A150: 147 | B150: Assistant ExtraBold
A151: 148 | B151: Assistant ExtraLight
A152: 149 | B152: Assistant Light
A153: 150 | B153: Assistant SemiBold
A154: 151 | B154: Athiti
A155: 152 | B155: Athiti ExtraLight
A156: 153 | B156: Athiti Light
A157: 154 | B157: Athiti Medium
A158: 155 | B158: Athiti SemiBold
A159: 156 | B159: Avenir Next LT Pro
A160: 157 | B160: Avenir Next LT Pro Demi
A161: 158 | B161: Avenir Next LT Pro Light
A162: 159 | B162: Baguet Script
A163: 160 | B163: Bahnschrift
A164: 161 | B164: Bahnschrift Condensed
A165: 162 | B165: Bahnschrift Light
A166: 163 | B166: Bahnschrift Light Condensed
A167: 164 | B167: Bahnschrift Light SemiCondensed
A168: 165 | B168: Bahnschrift SemiBold
A169: 166 | B169: Bahnschrift SemiBold Condensed
A170: 167 | B170: Bahnschrift SemiBold SemiConden
A171: 168 | B171: Bahnschrift SemiCondensed
A172: 169 | B172: Bahnschrift SemiLight
A173: 170 | B173: Bahnschrift SemiLight Condensed
A174: 171 | B174: Bahnschrift SemiLight SemiConde
A175: 172 | B175: Barlow
A176: 173 | B176: Barlow Black
A177: 174 | B177: Barlow Condensed
A178: 175 | B178: Barlow Condensed Black
A179: 176 | B179: Barlow Condensed ExtraBold
A180: 177 | B180: Barlow Condensed ExtraLight
A181: 178 | B181: Barlow Condensed Light
A182: 179 | B182: Barlow Condensed Medium
A183: 180 | B183: Barlow Condensed SemiBold
A184: 181 | B184: Barlow Condensed Thin
A185: 182 | B185: Barlow ExtraBold
A186: 183 | B186: Barlow ExtraLight
A187: 184 | B187: Barlow Light
A188: 185 | B188: Barlow Medium
A189: 186 | B189: Barlow Semi Condensed
A190: 187 | B190: Barlow Semi Condensed Black
A191: 188 | B191: Barlow Semi Condensed ExLight
A192: 189 | B192: Barlow Semi Condensed ExtraBold
A193: 190 | B193: Barlow Semi Condensed Light
A194: 191 | B194: Barlow Semi Condensed Medium
A195: 192 | B195: Barlow Semi Condensed SemiBold
A196: 193 | B196: Barlow Semi Condensed Thin
A197: 194 | B197: Barlow SemiBold
A198: 195 | B198: Barlow Thin
A199: 196 | B199: Baskerville Old Face
A200: 197 | B200: Bauhaus 93
A201: 198 | B201: Bebas Neue
A202: 199 | B202: Bell MT
... 938 more rows

Sheet 作業 (hidden)
F2: 521
A3: 登録件数 | B3: =COUNTA(名言集!C:C) -> 1022 | C3: =RANDBETWEEN(1,B3) -> 571 | F3: =IF($B$5="",INDEX(名言集!C:C,$F$2),VLOOKUP($F$2,$E:$H,2,FALSE)) -> 生まれながらに才能のある者は、それを頼んで鍛錬を怠る、自惚れる。しかし、生まれつきの才能がない者は、何とか技術を身につけようと日々努力する。心構えがまるで違う。これが大事だ。 | G3: =IF($B$5="",INDEX(名言集!D:D,$F$2),VLOOKUP($F$2,$E:$H,3,FALSE)) -> 織田信長 | H3: =IF($B$5="",INDEX(名言集!E:E,$F$2),VLOOKUP($F$2,$E:$H,4,FALSE)) -> 戦国時代の武将、戦国大名 / 1534～1582 | I3: =IF($B$5="",F2,VLOOKUP($F$2,$E:$I,5,FALSE)) -> 521
A4: 件数 | B4: =MAX(名言集!B:B) -> 1022 | C4: =RANDBETWEEN(1,B4) -> 230
A5: キーワード | B5: =今日の名言!AB6&"" -> 
E6: 連番 | F6: 名言 | G6: 名前 | H6: 経歴 | I6: 行番号
A7: テスト開始 | B7: 979 | E7: 1 | F7: =IF($B$5="","",IFERROR(VLOOKUP($E7,名言集!$B:$E,2,FALSE),"")) ->  | G7: =IF($B$5="","",IFERROR(VLOOKUP($E7,名言集!$B:$E,3,FALSE),"")) ->  | H7: =IF($B$5="","",IFERROR(VLOOKUP($E7,名言集!$B:$E,4,FALSE),"")) ->  | I7: =IF(F7="","",IFERROR(MATCH(E7,名言集!B:B,0),"")) -> 
E8: =E7+1 -> 2 | F8: =IF($B$5="","",IFERROR(VLOOKUP($E8,名言集!$B:$E,2,FALSE),"")) ->  | G8: =IF($B$5="","",IFERROR(VLOOKUP($E8,名言集!$B:$E,3,FALSE),"")) ->  | H8: =IF($B$5="","",IFERROR(VLOOKUP($E8,名言集!$B:$E,4,FALSE),"")) ->  | I8: =IF(F8="","",IFERROR(MATCH(E8,名言集!B:B,0),"")) -> 
E9: =E8+1 -> 3 | F9: =IF($B$5="","",IFERROR(VLOOKUP($E9,名言集!$B:$E,2,FALSE),"")) ->  | G9: =IF($B$5="","",IFERROR(VLOOKUP($E9,名言集!$B:$E,3,FALSE),"")) ->  | H9: =IF($B$5="","",IFERROR(VLOOKUP($E9,名言集!$B:$E,4,FALSE),"")) ->  | I9: =IF(F9="","",IFERROR(MATCH(E9,名言集!B:B,0),"")) -> 
E10: 4 | F10: =IF($B$5="","",IFERROR(VLOOKUP($E10,名言集!$B:$E,2,FALSE),"")) ->  | G10: =IF($B$5="","",IFERROR(VLOOKUP($E10,名言集!$B:$E,3,FALSE),"")) ->  | H10: =IF($B$5="","",IFERROR(VLOOKUP($E10,名言集!$B:$E,4,FALSE),"")) ->  | I10: =IF(F10="","",IFERROR(MATCH(E10,名言集!B:B,0),"")) -> 
E11: 5 | F11: =IF($B$5="","",IFERROR(VLOOKUP($E11,名言集!$B:$E,2,FALSE),"")) ->  | G11: =IF($B$5="","",IFERROR(VLOOKUP($E11,名言集!$B:$E,3,FALSE),"")) ->  | H11: =IF($B$5="","",IFERROR(VLOOKUP($E11,名言集!$B:$E,4,FALSE),"")) ->  | I11: =IF(F11="","",IFERROR(MATCH(E11,名言集!B:B,0),"")) -> 
E12: 6 | F12: =IF($B$5="","",IFERROR(VLOOKUP($E12,名言集!$B:$E,2,FALSE),"")) ->  | G12: =IF($B$5="","",IFERROR(VLOOKUP($E12,名言集!$B:$E,3,FALSE),"")) ->  | H12: =IF($B$5="","",IFERROR(VLOOKUP($E12,名言集!$B:$E,4,FALSE),"")) ->  | I12: =IF(F12="","",IFERROR(MATCH(E12,名言集!B:B,0),"")) -> 
E13: 7 | F13: =IF($B$5="","",IFERROR(VLOOKUP($E13,名言集!$B:$E,2,FALSE),"")) ->  | G13: =IF($B$5="","",IFERROR(VLOOKUP($E13,名言集!$B:$E,3,FALSE),"")) ->  | H13: =IF($B$5="","",IFERROR(VLOOKUP($E13,名言集!$B:$E,4,FALSE),"")) ->  | I13: =IF(F13="","",IFERROR(MATCH(E13,名言集!B:B,0),"")) -> 
E14: 8 | F14: =IF($B$5="","",IFERROR(VLOOKUP($E14,名言集!$B:$E,2,FALSE),"")) ->  | G14: =IF($B$5="","",IFERROR(VLOOKUP($E14,名言集!$B:$E,3,FALSE),"")) ->  | H14: =IF($B$5="","",IFERROR(VLOOKUP($E14,名言集!$B:$E,4,FALSE),"")) ->  | I14: =IF(F14="","",IFERROR(MATCH(E14,名言集!B:B,0),"")) -> 
E15: 9 | F15: =IF($B$5="","",IFERROR(VLOOKUP($E15,名言集!$B:$E,2,FALSE),"")) ->  | G15: =IF($B$5="","",IFERROR(VLOOKUP($E15,名言集!$B:$E,3,FALSE),"")) ->  | H15: =IF($B$5="","",IFERROR(VLOOKUP($E15,名言集!$B:$E,4,FALSE),"")) ->  | I15: =IF(F15="","",IFERROR(MATCH(E15,名言集!B:B,0),"")) -> 
E16: 10 | F16: =IF($B$5="","",IFERROR(VLOOKUP($E16,名言集!$B:$E,2,FALSE),"")) ->  | G16: =IF($B$5="","",IFERROR(VLOOKUP($E16,名言集!$B:$E,3,FALSE),"")) ->  | H16: =IF($B$5="","",IFERROR(VLOOKUP($E16,名言集!$B:$E,4,FALSE),"")) ->  | I16: =IF(F16="","",IFERROR(MATCH(E16,名言集!B:B,0),"")) -> 
E17: 11 | F17: =IF($B$5="","",IFERROR(VLOOKUP($E17,名言集!$B:$E,2,FALSE),"")) ->  | G17: =IF($B$5="","",IFERROR(VLOOKUP($E17,名言集!$B:$E,3,FALSE),"")) ->  | H17: =IF($B$5="","",IFERROR(VLOOKUP($E17,名言集!$B:$E,4,FALSE),"")) ->  | I17: =IF(F17="","",IFERROR(MATCH(E17,名言集!B:B,0),"")) -> 
E18: 12 | F18: =IF($B$5="","",IFERROR(VLOOKUP($E18,名言集!$B:$E,2,FALSE),"")) ->  | G18: =IF($B$5="","",IFERROR(VLOOKUP($E18,名言集!$B:$E,3,FALSE),"")) ->  | H18: =IF($B$5="","",IFERROR(VLOOKUP($E18,名言集!$B:$E,4,FALSE),"")) ->  | I18: =IF(F18="","",IFERROR(MATCH(E18,名言集!B:B,0),"")) -> 
E19: 13 | F19: =IF($B$5="","",IFERROR(VLOOKUP($E19,名言集!$B:$E,2,FALSE),"")) ->  | G19: =IF($B$5="","",IFERROR(VLOOKUP($E19,名言集!$B:$E,3,FALSE),"")) ->  | H19: =IF($B$5="","",IFERROR(VLOOKUP($E19,名言集!$B:$E,4,FALSE),"")) ->  | I19: =IF(F19="","",IFERROR(MATCH(E19,名言集!B:B,0),"")) -> 
E20: 14 | F20: =IF($B$5="","",IFERROR(VLOOKUP($E20,名言集!$B:$E,2,FALSE),"")) ->  | G20: =IF($B$5="","",IFERROR(VLOOKUP($E20,名言集!$B:$E,3,FALSE),"")) ->  | H20: =IF($B$5="","",IFERROR(VLOOKUP($E20,名言集!$B:$E,4,FALSE),"")) ->  | I20: =IF(F20="","",IFERROR(MATCH(E20,名言集!B:B,0),"")) -> 
E21: 15 | F21: =IF($B$5="","",IFERROR(VLOOKUP($E21,名言集!$B:$E,2,FALSE),"")) ->  | G21: =IF($B$5="","",IFERROR(VLOOKUP($E21,名言集!$B:$E,3,FALSE),"")) ->  | H21: =IF($B$5="","",IFERROR(VLOOKUP($E21,名言集!$B:$E,4,FALSE),"")) ->  | I21: =IF(F21="","",IFERROR(MATCH(E21,名言集!B:B,0),"")) -> 
E22: 16 | F22: =IF($B$5="","",IFERROR(VLOOKUP($E22,名言集!$B:$E,2,FALSE),"")) ->  | G22: =IF($B$5="","",IFERROR(VLOOKUP($E22,名言集!$B:$E,3,FALSE),"")) ->  | H22: =IF($B$5="","",IFERROR(VLOOKUP($E22,名言集!$B:$E,4,FALSE),"")) ->  | I22: =IF(F22="","",IFERROR(MATCH(E22,名言集!B:B,0),"")) -> 
E23: 17 | F23: =IF($B$5="","",IFERROR(VLOOKUP($E23,名言集!$B:$E,2,FALSE),"")) ->  | G23: =IF($B$5="","",IFERROR(VLOOKUP($E23,名言集!$B:$E,3,FALSE),"")) ->  | H23: =IF($B$5="","",IFERROR(VLOOKUP($E23,名言集!$B:$E,4,FALSE),"")) ->  | I23: =IF(F23="","",IFERROR(MATCH(E23,名言集!B:B,0),"")) -> 
E24: 18 | F24: =IF($B$5="","",IFERROR(VLOOKUP($E24,名言集!$B:$E,2,FALSE),"")) ->  | G24: =IF($B$5="","",IFERROR(VLOOKUP($E24,名言集!$B:$E,3,FALSE),"")) ->  | H24: =IF($B$5="","",IFERROR(VLOOKUP($E24,名言集!$B:$E,4,FALSE),"")) ->  | I24: =IF(F24="","",IFERROR(MATCH(E24,名言集!B:B,0),"")) -> 
E25: 19 | F25: =IF($B$5="","",IFERROR(VLOOKUP($E25,名言集!$B:$E,2,FALSE),"")) ->  | G25: =IF($B$5="","",IFERROR(VLOOKUP($E25,名言集!$B:$E,3,FALSE),"")) ->  | H25: =IF($B$5="","",IFERROR(VLOOKUP($E25,名言集!$B:$E,4,FALSE),"")) ->  | I25: =IF(F25="","",IFERROR(MATCH(E25,名言集!B:B,0),"")) -> 
E26: 20 | F26: =IF($B$5="","",IFERROR(VLOOKUP($E26,名言集!$B:$E,2,FALSE),"")) ->  | G26: =IF($B$5="","",IFERROR(VLOOKUP($E26,名言集!$B:$E,3,FALSE),"")) ->  | H26: =IF($B$5="","",IFERROR(VLOOKUP($E26,名言集!$B:$E,4,FALSE),"")) ->  | I26: =IF(F26="","",IFERROR(MATCH(E26,名言集!B:B,0),"")) -> 
E27: 21 | F27: =IF($B$5="","",IFERROR(VLOOKUP($E27,名言集!$B:$E,2,FALSE),"")) ->  | G27: =IF($B$5="","",IFERROR(VLOOKUP($E27,名言集!$B:$E,3,FALSE),"")) ->  | H27: =IF($B$5="","",IFERROR(VLOOKUP($E27,名言集!$B:$E,4,FALSE),"")) ->  | I27: =IF(F27="","",IFERROR(MATCH(E27,名言集!B:B,0),"")) -> 
E28: 22 | F28: =IF($B$5="","",IFERROR(VLOOKUP($E28,名言集!$B:$E,2,FALSE),"")) ->  | G28: =IF($B$5="","",IFERROR(VLOOKUP($E28,名言集!$B:$E,3,FALSE),"")) ->  | H28: =IF($B$5="","",IFERROR(VLOOKUP($E28,名言集!$B:$E,4,FALSE),"")) ->  | I28: =IF(F28="","",IFERROR(MATCH(E28,名言集!B:B,0),"")) -> 
E29: 23 | F29: =IF($B$5="","",IFERROR(VLOOKUP($E29,名言集!$B:$E,2,FALSE),"")) ->  | G29: =IF($B$5="","",IFERROR(VLOOKUP($E29,名言集!$B:$E,3,FALSE),"")) ->  | H29: =IF($B$5="","",IFERROR(VLOOKUP($E29,名言集!$B:$E,4,FALSE),"")) ->  | I29: =IF(F29="","",IFERROR(MATCH(E29,名言集!B:B,0),"")) -> 
E30: 24 | F30: =IF($B$5="","",IFERROR(VLOOKUP($E30,名言集!$B:$E,2,FALSE),"")) ->  | G30: =IF($B$5="","",IFERROR(VLOOKUP($E30,名言集!$B:$E,3,FALSE),"")) ->  | H30: =IF($B$5="","",IFERROR(VLOOKUP($E30,名言集!$B:$E,4,FALSE),"")) ->  | I30: =IF(F30="","",IFERROR(MATCH(E30,名言集!B:B,0),"")) -> 
E31: 25 | F31: =IF($B$5="","",IFERROR(VLOOKUP($E31,名言集!$B:$E,2,FALSE),"")) ->  | G31: =IF($B$5="","",IFERROR(VLOOKUP($E31,名言集!$B:$E,3,FALSE),"")) ->  | H31: =IF($B$5="","",IFERROR(VLOOKUP($E31,名言集!$B:$E,4,FALSE),"")) ->  | I31: =IF(F31="","",IFERROR(MATCH(E31,名言集!B:B,0),"")) -> 
E32: 26 | F32: =IF($B$5="","",IFERROR(VLOOKUP($E32,名言集!$B:$E,2,FALSE),"")) ->  | G32: =IF($B$5="","",IFERROR(VLOOKUP($E32,名言集!$B:$E,3,FALSE),"")) ->  | H32: =IF($B$5="","",IFERROR(VLOOKUP($E32,名言集!$B:$E,4,FALSE),"")) ->  | I32: =IF(F32="","",IFERROR(MATCH(E32,名言集!B:B,0),"")) -> 
E33: 27 | F33: =IF($B$5="","",IFERROR(VLOOKUP($E33,名言集!$B:$E,2,FALSE),"")) ->  | G33: =IF($B$5="","",IFERROR(VLOOKUP($E33,名言集!$B:$E,3,FALSE),"")) ->  | H33: =IF($B$5="","",IFERROR(VLOOKUP($E33,名言集!$B:$E,4,FALSE),"")) ->  | I33: =IF(F33="","",IFERROR(MATCH(E33,名言集!B:B,0),"")) -> 
E34: 28 | F34: =IF($B$5="","",IFERROR(VLOOKUP($E34,名言集!$B:$E,2,FALSE),"")) ->  | G34: =IF($B$5="","",IFERROR(VLOOKUP($E34,名言集!$B:$E,3,FALSE),"")) ->  | H34: =IF($B$5="","",IFERROR(VLOOKUP($E34,名言集!$B:$E,4,FALSE),"")) ->  | I34: =IF(F34="","",IFERROR(MATCH(E34,名言集!B:B,0),"")) -> 
E35: 29 | F35: =IF($B$5="","",IFERROR(VLOOKUP($E35,名言集!$B:$E,2,FALSE),"")) ->  | G35: =IF($B$5="","",IFERROR(VLOOKUP($E35,名言集!$B:$E,3,FALSE),"")) ->  | H35: =IF($B$5="","",IFERROR(VLOOKUP($E35,名言集!$B:$E,4,FALSE),"")) ->  | I35: =IF(F35="","",IFERROR(MATCH(E35,名言集!B:B,0),"")) -> 
E36: 30 | F36: =IF($B$5="","",IFERROR(VLOOKUP($E36,名言集!$B:$E,2,FALSE),"")) ->  | G36: =IF($B$5="","",IFERROR(VLOOKUP($E36,名言集!$B:$E,3,FALSE),"")) ->  | H36: =IF($B$5="","",IFERROR(VLOOKUP($E36,名言集!$B:$E,4,FALSE),"")) ->  | I36: =IF(F36="","",IFERROR(MATCH(E36,名言集!B:B,0),"")) -> 
E37: 31 | F37: =IF($B$5="","",IFERROR(VLOOKUP($E37,名言集!$B:$E,2,FALSE),"")) ->  | G37: =IF($B$5="","",IFERROR(VLOOKUP($E37,名言集!$B:$E,3,FALSE),"")) ->  | H37: =IF($B$5="","",IFERROR(VLOOKUP($E37,名言集!$B:$E,4,FALSE),"")) ->  | I37: =IF(F37="","",IFERROR(MATCH(E37,名言集!B:B,0),"")) -> 
E38: 32 | F38: =IF($B$5="","",IFERROR(VLOOKUP($E38,名言集!$B:$E,2,FALSE),"")) ->  | G38: =IF($B$5="","",IFERROR(VLOOKUP($E38,名言集!$B:$E,3,FALSE),"")) ->  | H38: =IF($B$5="","",IFERROR(VLOOKUP($E38,名言集!$B:$E,4,FALSE),"")) ->  | I38: =IF(F38="","",IFERROR(MATCH(E38,名言集!B:B,0),"")) -> 
E39: 33 | F39: =IF($B$5="","",IFERROR(VLOOKUP($E39,名言集!$B:$E,2,FALSE),"")) ->  | G39: =IF($B$5="","",IFERROR(VLOOKUP($E39,名言集!$B:$E,3,FALSE),"")) ->  | H39: =IF($B$5="","",IFERROR(VLOOKUP($E39,名言集!$B:$E,4,FALSE),"")) ->  | I39: =IF(F39="","",IFERROR(MATCH(E39,名言集!B:B,0),"")) -> 
E40: 34 | F40: =IF($B$5="","",IFERROR(VLOOKUP($E40,名言集!$B:$E,2,FALSE),"")) ->  | G40: =IF($B$5="","",IFERROR(VLOOKUP($E40,名言集!$B:$E,3,FALSE),"")) ->  | H40: =IF($B$5="","",IFERROR(VLOOKUP($E40,名言集!$B:$E,4,FALSE),"")) ->  | I40: =IF(F40="","",IFERROR(MATCH(E40,名言集!B:B,0),"")) -> 
E41: 35 | F41: =IF($B$5="","",IFERROR(VLOOKUP($E41,名言集!$B:$E,2,FALSE),"")) ->  | G41: =IF($B$5="","",IFERROR(VLOOKUP($E41,名言集!$B:$E,3,FALSE),"")) ->  | H41: =IF($B$5="","",IFERROR(VLOOKUP($E41,名言集!$B:$E,4,FALSE),"")) ->  | I41: =IF(F41="","",IFERROR(MATCH(E41,名言集!B:B,0),"")) -> 
E42: 36 | F42: =IF($B$5="","",IFERROR(VLOOKUP($E42,名言集!$B:$E,2,FALSE),"")) ->  | G42: =IF($B$5="","",IFERROR(VLOOKUP($E42,名言集!$B:$E,3,FALSE),"")) ->  | H42: =IF($B$5="","",IFERROR(VLOOKUP($E42,名言集!$B:$E,4,FALSE),"")) ->  | I42: =IF(F42="","",IFERROR(MATCH(E42,名言集!B:B,0),"")) -> 
E43: 37 | F43: =IF($B$5="","",IFERROR(VLOOKUP($E43,名言集!$B:$E,2,FALSE),"")) ->  | G43: =IF($B$5="","",IFERROR(VLOOKUP($E43,名言集!$B:$E,3,FALSE),"")) ->  | H43: =IF($B$5="","",IFERROR(VLOOKUP($E43,名言集!$B:$E,4,FALSE),"")) ->  | I43: =IF(F43="","",IFERROR(MATCH(E43,名言集!B:B,0),"")) -> 
E44: 38 | F44: =IF($B$5="","",IFERROR(VLOOKUP($E44,名言集!$B:$E,2,FALSE),"")) ->  | G44: =IF($B$5="","",IFERROR(VLOOKUP($E44,名言集!$B:$E,3,FALSE),"")) ->  | H44: =IF($B$5="","",IFERROR(VLOOKUP($E44,名言集!$B:$E,4,FALSE),"")) ->  | I44: =IF(F44="","",IFERROR(MATCH(E44,名言集!B:B,0),"")) -> 
E45: 39 | F45: =IF($B$5="","",IFERROR(VLOOKUP($E45,名言集!$B:$E,2,FALSE),"")) ->  | G45: =IF($B$5="","",IFERROR(VLOOKUP($E45,名言集!$B:$E,3,FALSE),"")) ->  | H45: =IF($B$5="","",IFERROR(VLOOKUP($E45,名言集!$B:$E,4,FALSE),"")) ->  | I45: =IF(F45="","",IFERROR(MATCH(E45,名言集!B:B,0),"")) -> 
E46: 40 | F46: =IF($B$5="","",IFERROR(VLOOKUP($E46,名言集!$B:$E,2,FALSE),"")) ->  | G46: =IF($B$5="","",IFERROR(VLOOKUP($E46,名言集!$B:$E,3,FALSE),"")) ->  | H46: =IF($B$5="","",IFERROR(VLOOKUP($E46,名言集!$B:$E,4,FALSE),"")) ->  | I46: =IF(F46="","",IFERROR(MATCH(E46,名言集!B:B,0),"")) -> 
E47: 41 | F47: =IF($B$5="","",IFERROR(VLOOKUP($E47,名言集!$B:$E,2,FALSE),"")) ->  | G47: =IF($B$5="","",IFERROR(VLOOKUP($E47,名言集!$B:$E,3,FALSE),"")) ->  | H47: =IF($B$5="","",IFERROR(VLOOKUP($E47,名言集!$B:$E,4,FALSE),"")) ->  | I47: =IF(F47="","",IFERROR(MATCH(E47,名言集!B:B,0),"")) -> 
E48: 42 | F48: =IF($B$5="","",IFERROR(VLOOKUP($E48,名言集!$B:$E,2,FALSE),"")) ->  | G48: =IF($B$5="","",IFERROR(VLOOKUP($E48,名言集!$B:$E,3,FALSE),"")) ->  | H48: =IF($B$5="","",IFERROR(VLOOKUP($E48,名言集!$B:$E,4,FALSE),"")) ->  | I48: =IF(F48="","",IFERROR(MATCH(E48,名言集!B:B,0),"")) -> 
E49: 43 | F49: =IF($B$5="","",IFERROR(VLOOKUP($E49,名言集!$B:$E,2,FALSE),"")) ->  | G49: =IF($B$5="","",IFERROR(VLOOKUP($E49,名言集!$B:$E,3,FALSE),"")) ->  | H49: =IF($B$5="","",IFERROR(VLOOKUP($E49,名言集!$B:$E,4,FALSE),"")) ->  | I49: =IF(F49="","",IFERROR(MATCH(E49,名言集!B:B,0),"")) -> 
E50: 44 | F50: =IF($B$5="","",IFERROR(VLOOKUP($E50,名言集!$B:$E,2,FALSE),"")) ->  | G50: =IF($B$5="","",IFERROR(VLOOKUP($E50,名言集!$B:$E,3,FALSE),"")) ->  | H50: =IF($B$5="","",IFERROR(VLOOKUP($E50,名言集!$B:$E,4,FALSE),"")) ->  | I50: =IF(F50="","",IFERROR(MATCH(E50,名言集!B:B,0),"")) -> 
E51: 45 | F51: =IF($B$5="","",IFERROR(VLOOKUP($E51,名言集!$B:$E,2,FALSE),"")) ->  | G51: =IF($B$5="","",IFERROR(VLOOKUP($E51,名言集!$B:$E,3,FALSE),"")) ->  | H51: =IF($B$5="","",IFERROR(VLOOKUP($E51,名言集!$B:$E,4,FALSE),"")) ->  | I51: =IF(F51="","",IFERROR(MATCH(E51,名言集!B:B,0),"")) -> 
E52: 46 | F52: =IF($B$5="","",IFERROR(VLOOKUP($E52,名言集!$B:$E,2,FALSE),"")) ->  | G52: =IF($B$5="","",IFERROR(VLOOKUP($E52,名言集!$B:$E,3,FALSE),"")) ->  | H52: =IF($B$5="","",IFERROR(VLOOKUP($E52,名言集!$B:$E,4,FALSE),"")) ->  | I52: =IF(F52="","",IFERROR(MATCH(E52,名言集!B:B,0),"")) -> 
E53: 47 | F53: =IF($B$5="","",IFERROR(VLOOKUP($E53,名言集!$B:$E,2,FALSE),"")) ->  | G53: =IF($B$5="","",IFERROR(VLOOKUP($E53,名言集!$B:$E,3,FALSE),"")) ->  | H53: =IF($B$5="","",IFERROR(VLOOKUP($E53,名言集!$B:$E,4,FALSE),"")) ->  | I53: =IF(F53="","",IFERROR(MATCH(E53,名言集!B:B,0),"")) -> 
E54: 48 | F54: =IF($B$5="","",IFERROR(VLOOKUP($E54,名言集!$B:$E,2,FALSE),"")) ->  | G54: =IF($B$5="","",IFERROR(VLOOKUP($E54,名言集!$B:$E,3,FALSE),"")) ->  | H54: =IF($B$5="","",IFERROR(VLOOKUP($E54,名言集!$B:$E,4,FALSE),"")) ->  | I54: =IF(F54="","",IFERROR(MATCH(E54,名言集!B:B,0),"")) -> 
E55: 49 | F55: =IF($B$5="","",IFERROR(VLOOKUP($E55,名言集!$B:$E,2,FALSE),"")) ->  | G55: =IF($B$5="","",IFERROR(VLOOKUP($E55,名言集!$B:$E,3,FALSE),"")) ->  | H55: =IF($B$5="","",IFERROR(VLOOKUP($E55,名言集!$B:$E,4,FALSE),"")) ->  | I55: =IF(F55="","",IFERROR(MATCH(E55,名言集!B:B,0),"")) -> 
E56: 50 | F56: =IF($B$5="","",IFERROR(VLOOKUP($E56,名言集!$B:$E,2,FALSE),"")) ->  | G56: =IF($B$5="","",IFERROR(VLOOKUP($E56,名言集!$B:$E,3,FALSE),"")) ->  | H56: =IF($B$5="","",IFERROR(VLOOKUP($E56,名言集!$B:$E,4,FALSE),"")) ->  | I56: =IF(F56="","",IFERROR(MATCH(E56,名言集!B:B,0),"")) -> 
E57: 51 | F57: =IF($B$5="","",IFERROR(VLOOKUP($E57,名言集!$B:$E,2,FALSE),"")) ->  | G57: =IF($B$5="","",IFERROR(VLOOKUP($E57,名言集!$B:$E,3,FALSE),"")) ->  | H57: =IF($B$5="","",IFERROR(VLOOKUP($E57,名言集!$B:$E,4,FALSE),"")) ->  | I57: =IF(F57="","",IFERROR(MATCH(E57,名言集!B:B,0),"")) -> 
E58: 52 | F58: =IF($B$5="","",IFERROR(VLOOKUP($E58,名言集!$B:$E,2,FALSE),"")) ->  | G58: =IF($B$5="","",IFERROR(VLOOKUP($E58,名言集!$B:$E,3,FALSE),"")) ->  | H58: =IF($B$5="","",IFERROR(VLOOKUP($E58,名言集!$B:$E,4,FALSE),"")) ->  | I58: =IF(F58="","",IFERROR(MATCH(E58,名言集!B:B,0),"")) -> 
E59: 53 | F59: =IF($B$5="","",IFERROR(VLOOKUP($E59,名言集!$B:$E,2,FALSE),"")) ->  | G59: =IF($B$5="","",IFERROR(VLOOKUP($E59,名言集!$B:$E,3,FALSE),"")) ->  | H59: =IF($B$5="","",IFERROR(VLOOKUP($E59,名言集!$B:$E,4,FALSE),"")) ->  | I59: =IF(F59="","",IFERROR(MATCH(E59,名言集!B:B,0),"")) -> 
E60: 54 | F60: =IF($B$5="","",IFERROR(VLOOKUP($E60,名言集!$B:$E,2,FALSE),"")) ->  | G60: =IF($B$5="","",IFERROR(VLOOKUP($E60,名言集!$B:$E,3,FALSE),"")) ->  | H60: =IF($B$5="","",IFERROR(VLOOKUP($E60,名言集!$B:$E,4,FALSE),"")) ->  | I60: =IF(F60="","",IFERROR(MATCH(E60,名言集!B:B,0),"")) -> 
E61: 55 | F61: =IF($B$5="","",IFERROR(VLOOKUP($E61,名言集!$B:$E,2,FALSE),"")) ->  | G61: =IF($B$5="","",IFERROR(VLOOKUP($E61,名言集!$B:$E,3,FALSE),"")) ->  | H61: =IF($B$5="","",IFERROR(VLOOKUP($E61,名言集!$B:$E,4,FALSE),"")) ->  | I61: =IF(F61="","",IFERROR(MATCH(E61,名言集!B:B,0),"")) -> 
E62: 56 | F62: =IF($B$5="","",IFERROR(VLOOKUP($E62,名言集!$B:$E,2,FALSE),"")) ->  | G62: =IF($B$5="","",IFERROR(VLOOKUP($E62,名言集!$B:$E,3,FALSE),"")) ->  | H62: =IF($B$5="","",IFERROR(VLOOKUP($E62,名言集!$B:$E,4,FALSE),"")) ->  | I62: =IF(F62="","",IFERROR(MATCH(E62,名言集!B:B,0),"")) -> 
E63: 57 | F63: =IF($B$5="","",IFERROR(VLOOKUP($E63,名言集!$B:$E,2,FALSE),"")) ->  | G63: =IF($B$5="","",IFERROR(VLOOKUP($E63,名言集!$B:$E,3,FALSE),"")) ->  | H63: =IF($B$5="","",IFERROR(VLOOKUP($E63,名言集!$B:$E,4,FALSE),"")) ->  | I63: =IF(F63="","",IFERROR(MATCH(E63,名言集!B:B,0),"")) -> 
E64: 58 | F64: =IF($B$5="","",IFERROR(VLOOKUP($E64,名言集!$B:$E,2,FALSE),"")) ->  | G64: =IF($B$5="","",IFERROR(VLOOKUP($E64,名言集!$B:$E,3,FALSE),"")) ->  | H64: =IF($B$5="","",IFERROR(VLOOKUP($E64,名言集!$B:$E,4,FALSE),"")) ->  | I64: =IF(F64="","",IFERROR(MATCH(E64,名言集!B:B,0),"")) -> 
E65: 59 | F65: =IF($B$5="","",IFERROR(VLOOKUP($E65,名言集!$B:$E,2,FALSE),"")) ->  | G65: =IF($B$5="","",IFERROR(VLOOKUP($E65,名言集!$B:$E,3,FALSE),"")) ->  | H65: =IF($B$5="","",IFERROR(VLOOKUP($E65,名言集!$B:$E,4,FALSE),"")) ->  | I65: =IF(F65="","",IFERROR(MATCH(E65,名言集!B:B,0),"")) -> 
E66: 60 | F66: =IF($B$5="","",IFERROR(VLOOKUP($E66,名言集!$B:$E,2,FALSE),"")) ->  | G66: =IF($B$5="","",IFERROR(VLOOKUP($E66,名言集!$B:$E,3,FALSE),"")) ->  | H66: =IF($B$5="","",IFERROR(VLOOKUP($E66,名言集!$B:$E,4,FALSE),"")) ->  | I66: =IF(F66="","",IFERROR(MATCH(E66,名言集!B:B,0),"")) -> 
E67: 61 | F67: =IF($B$5="","",IFERROR(VLOOKUP($E67,名言集!$B:$E,2,FALSE),"")) ->  | G67: =IF($B$5="","",IFERROR(VLOOKUP($E67,名言集!$B:$E,3,FALSE),"")) ->  | H67: =IF($B$5="","",IFERROR(VLOOKUP($E67,名言集!$B:$E,4,FALSE),"")) ->  | I67: =IF(F67="","",IFERROR(MATCH(E67,名言集!B:B,0),"")) -> 
E68: 62 | F68: =IF($B$5="","",IFERROR(VLOOKUP($E68,名言集!$B:$E,2,FALSE),"")) ->  | G68: =IF($B$5="","",IFERROR(VLOOKUP($E68,名言集!$B:$E,3,FALSE),"")) ->  | H68: =IF($B$5="","",IFERROR(VLOOKUP($E68,名言集!$B:$E,4,FALSE),"")) ->  | I68: =IF(F68="","",IFERROR(MATCH(E68,名言集!B:B,0),"")) -> 
E69: 63 | F69: =IF($B$5="","",IFERROR(VLOOKUP($E69,名言集!$B:$E,2,FALSE),"")) ->  | G69: =IF($B$5="","",IFERROR(VLOOKUP($E69,名言集!$B:$E,3,FALSE),"")) ->  | H69: =IF($B$5="","",IFERROR(VLOOKUP($E69,名言集!$B:$E,4,FALSE),"")) ->  | I69: =IF(F69="","",IFERROR(MATCH(E69,名言集!B:B,0),"")) -> 
E70: 64 | F70: =IF($B$5="","",IFERROR(VLOOKUP($E70,名言集!$B:$E,2,FALSE),"")) ->  | G70: =IF($B$5="","",IFERROR(VLOOKUP($E70,名言集!$B:$E,3,FALSE),"")) ->  | H70: =IF($B$5="","",IFERROR(VLOOKUP($E70,名言集!$B:$E,4,FALSE),"")) ->  | I70: =IF(F70="","",IFERROR(MATCH(E70,名言集!B:B,0),"")) -> 
E71: 65 | F71: =IF($B$5="","",IFERROR(VLOOKUP($E71,名言集!$B:$E,2,FALSE),"")) ->  | G71: =IF($B$5="","",IFERROR(VLOOKUP($E71,名言集!$B:$E,3,FALSE),"")) ->  | H71: =IF($B$5="","",IFERROR(VLOOKUP($E71,名言集!$B:$E,4,FALSE),"")) ->  | I71: =IF(F71="","",IFERROR(MATCH(E71,名言集!B:B,0),"")) -> 
E72: 66 | F72: =IF($B$5="","",IFERROR(VLOOKUP($E72,名言集!$B:$E,2,FALSE),"")) ->  | G72: =IF($B$5="","",IFERROR(VLOOKUP($E72,名言集!$B:$E,3,FALSE),"")) ->  | H72: =IF($B$5="","",IFERROR(VLOOKUP($E72,名言集!$B:$E,4,FALSE),"")) ->  | I72: =IF(F72="","",IFERROR(MATCH(E72,名言集!B:B,0),"")) -> 
E73: =E72+1 -> 67 | F73: =IF($B$5="","",IFERROR(VLOOKUP($E73,名言集!$B:$E,2,FALSE),"")) ->  | G73: =IF($B$5="","",IFERROR(VLOOKUP($E73,名言集!$B:$E,3,FALSE),"")) ->  | H73: =IF($B$5="","",IFERROR(VLOOKUP($E73,名言集!$B:$E,4,FALSE),"")) ->  | I73: =IF(F73="","",IFERROR(MATCH(E73,名言集!B:B,0),"")) -> 
E74: 68 | F74: =IF($B$5="","",IFERROR(VLOOKUP($E74,名言集!$B:$E,2,FALSE),"")) ->  | G74: =IF($B$5="","",IFERROR(VLOOKUP($E74,名言集!$B:$E,3,FALSE),"")) ->  | H74: =IF($B$5="","",IFERROR(VLOOKUP($E74,名言集!$B:$E,4,FALSE),"")) ->  | I74: =IF(F74="","",IFERROR(MATCH(E74,名言集!B:B,0),"")) -> 
E75: 69 | F75: =IF($B$5="","",IFERROR(VLOOKUP($E75,名言集!$B:$E,2,FALSE),"")) ->  | G75: =IF($B$5="","",IFERROR(VLOOKUP($E75,名言集!$B:$E,3,FALSE),"")) ->  | H75: =IF($B$5="","",IFERROR(VLOOKUP($E75,名言集!$B:$E,4,FALSE),"")) ->  | I75: =IF(F75="","",IFERROR(MATCH(E75,名言集!B:B,0),"")) -> 
E76: 70 | F76: =IF($B$5="","",IFERROR(VLOOKUP($E76,名言集!$B:$E,2,FALSE),"")) ->  | G76: =IF($B$5="","",IFERROR(VLOOKUP($E76,名言集!$B:$E,3,FALSE),"")) ->  | H76: =IF($B$5="","",IFERROR(VLOOKUP($E76,名言集!$B:$E,4,FALSE),"")) ->  | I76: =IF(F76="","",IFERROR(MATCH(E76,名言集!B:B,0),"")) -> 
E77: 71 | F77: =IF($B$5="","",IFERROR(VLOOKUP($E77,名言集!$B:$E,2,FALSE),"")) ->  | G77: =IF($B$5="","",IFERROR(VLOOKUP($E77,名言集!$B:$E,3,FALSE),"")) ->  | H77: =IF($B$5="","",IFERROR(VLOOKUP($E77,名言集!$B:$E,4,FALSE),"")) ->  | I77: =IF(F77="","",IFERROR(MATCH(E77,名言集!B:B,0),"")) -> 
E78: 72 | F78: =IF($B$5="","",IFERROR(VLOOKUP($E78,名言集!$B:$E,2,FALSE),"")) ->  | G78: =IF($B$5="","",IFERROR(VLOOKUP($E78,名言集!$B:$E,3,FALSE),"")) ->  | H78: =IF($B$5="","",IFERROR(VLOOKUP($E78,名言集!$B:$E,4,FALSE),"")) ->  | I78: =IF(F78="","",IFERROR(MATCH(E78,名言集!B:B,0),"")) -> 
E79: 73 | F79: =IF($B$5="","",IFERROR(VLOOKUP($E79,名言集!$B:$E,2,FALSE),"")) ->  | G79: =IF($B$5="","",IFERROR(VLOOKUP($E79,名言集!$B:$E,3,FALSE),"")) ->  | H79: =IF($B$5="","",IFERROR(VLOOKUP($E79,名言集!$B:$E,4,FALSE),"")) ->  | I79: =IF(F79="","",IFERROR(MATCH(E79,名言集!B:B,0),"")) -> 
E80: 74 | F80: =IF($B$5="","",IFERROR(VLOOKUP($E80,名言集!$B:$E,2,FALSE),"")) ->  | G80: =IF($B$5="","",IFERROR(VLOOKUP($E80,名言集!$B:$E,3,FALSE),"")) ->  | H80: =IF($B$5="","",IFERROR(VLOOKUP($E80,名言集!$B:$E,4,FALSE),"")) ->  | I80: =IF(F80="","",IFERROR(MATCH(E80,名言集!B:B,0),"")) -> 
E81: 75 | F81: =IF($B$5="","",IFERROR(VLOOKUP($E81,名言集!$B:$E,2,FALSE),"")) ->  | G81: =IF($B$5="","",IFERROR(VLOOKUP($E81,名言集!$B:$E,3,FALSE),"")) ->  | H81: =IF($B$5="","",IFERROR(VLOOKUP($E81,名言集!$B:$E,4,FALSE),"")) ->  | I81: =IF(F81="","",IFERROR(MATCH(E81,名言集!B:B,0),"")) -> 
E82: 76 | F82: =IF($B$5="","",IFERROR(VLOOKUP($E82,名言集!$B:$E,2,FALSE),"")) ->  | G82: =IF($B$5="","",IFERROR(VLOOKUP($E82,名言集!$B:$E,3,FALSE),"")) ->  | H82: =IF($B$5="","",IFERROR(VLOOKUP($E82,名言集!$B:$E,4,FALSE),"")) ->  | I82: =IF(F82="","",IFERROR(MATCH(E82,名言集!B:B,0),"")) -> 
E83: 77 | F83: =IF($B$5="","",IFERROR(VLOOKUP($E83,名言集!$B:$E,2,FALSE),"")) ->  | G83: =IF($B$5="","",IFERROR(VLOOKUP($E83,名言集!$B:$E,3,FALSE),"")) ->  | H83: =IF($B$5="","",IFERROR(VLOOKUP($E83,名言集!$B:$E,4,FALSE),"")) ->  | I83: =IF(F83="","",IFERROR(MATCH(E83,名言集!B:B,0),"")) -> 
E84: 78 | F84: =IF($B$5="","",IFERROR(VLOOKUP($E84,名言集!$B:$E,2,FALSE),"")) ->  | G84: =IF($B$5="","",IFERROR(VLOOKUP($E84,名言集!$B:$E,3,FALSE),"")) ->  | H84: =IF($B$5="","",IFERROR(VLOOKUP($E84,名言集!$B:$E,4,FALSE),"")) ->  | I84: =IF(F84="","",IFERROR(MATCH(E84,名言集!B:B,0),"")) -> 
E85: 79 | F85: =IF($B$5="","",IFERROR(VLOOKUP($E85,名言集!$B:$E,2,FALSE),"")) ->  | G85: =IF($B$5="","",IFERROR(VLOOKUP($E85,名言集!$B:$E,3,FALSE),"")) ->  | H85: =IF($B$5="","",IFERROR(VLOOKUP($E85,名言集!$B:$E,4,FALSE),"")) ->  | I85: =IF(F85="","",IFERROR(MATCH(E85,名言集!B:B,0),"")) -> 
E86: 80 | F86: =IF($B$5="","",IFERROR(VLOOKUP($E86,名言集!$B:$E,2,FALSE),"")) ->  | G86: =IF($B$5="","",IFERROR(VLOOKUP($E86,名言集!$B:$E,3,FALSE),"")) ->  | H86: =IF($B$5="","",IFERROR(VLOOKUP($E86,名言集!$B:$E,4,FALSE),"")) ->  | I86: =IF(F86="","",IFERROR(MATCH(E86,名言集!B:B,0),"")) -> 
E87: 81 | F87: =IF($B$5="","",IFERROR(VLOOKUP($E87,名言集!$B:$E,2,FALSE),"")) ->  | G87: =IF($B$5="","",IFERROR(VLOOKUP($E87,名言集!$B:$E,3,FALSE),"")) ->  | H87: =IF($B$5="","",IFERROR(VLOOKUP($E87,名言集!$B:$E,4,FALSE),"")) ->  | I87: =IF(F87="","",IFERROR(MATCH(E87,名言集!B:B,0),"")) -> 
E88: 82 | F88: =IF($B$5="","",IFERROR(VLOOKUP($E88,名言集!$B:$E,2,FALSE),"")) ->  | G88: =IF($B$5="","",IFERROR(VLOOKUP($E88,名言集!$B:$E,3,FALSE),"")) ->  | H88: =IF($B$5="","",IFERROR(VLOOKUP($E88,名言集!$B:$E,4,FALSE),"")) ->  | I88: =IF(F88="","",IFERROR(MATCH(E88,名言集!B:B,0),"")) -> 
E89: 83 | F89: =IF($B$5="","",IFERROR(VLOOKUP($E89,名言集!$B:$E,2,FALSE),"")) ->  | G89: =IF($B$5="","",IFERROR(VLOOKUP($E89,名言集!$B:$E,3,FALSE),"")) ->  | H89: =IF($B$5="","",IFERROR(VLOOKUP($E89,名言集!$B:$E,4,FALSE),"")) ->  | I89: =IF(F89="","",IFERROR(MATCH(E89,名言集!B:B,0),"")) -> 
E90: 84 | F90: =IF($B$5="","",IFERROR(VLOOKUP($E90,名言集!$B:$E,2,FALSE),"")) ->  | G90: =IF($B$5="","",IFERROR(VLOOKUP($E90,名言集!$B:$E,3,FALSE),"")) ->  | H90: =IF($B$5="","",IFERROR(VLOOKUP($E90,名言集!$B:$E,4,FALSE),"")) ->  | I90: =IF(F90="","",IFERROR(MATCH(E90,名言集!B:B,0),"")) -> 
E91: 85 | F91: =IF($B$5="","",IFERROR(VLOOKUP($E91,名言集!$B:$E,2,FALSE),"")) ->  | G91: =IF($B$5="","",IFERROR(VLOOKUP($E91,名言集!$B:$E,3,FALSE),"")) ->  | H91: =IF($B$5="","",IFERROR(VLOOKUP($E91,名言集!$B:$E,4,FALSE),"")) ->  | I91: =IF(F91="","",IFERROR(MATCH(E91,名言集!B:B,0),"")) -> 
E92: 86 | F92: =IF($B$5="","",IFERROR(VLOOKUP($E92,名言集!$B:$E,2,FALSE),"")) ->  | G92: =IF($B$5="","",IFERROR(VLOOKUP($E92,名言集!$B:$E,3,FALSE),"")) ->  | H92: =IF($B$5="","",IFERROR(VLOOKUP($E92,名言集!$B:$E,4,FALSE),"")) ->  | I92: =IF(F92="","",IFERROR(MATCH(E92,名言集!B:B,0),"")) -> 
E93: 87 | F93: =IF($B$5="","",IFERROR(VLOOKUP($E93,名言集!$B:$E,2,FALSE),"")) ->  | G93: =IF($B$5="","",IFERROR(VLOOKUP($E93,名言集!$B:$E,3,FALSE),"")) ->  | H93: =IF($B$5="","",IFERROR(VLOOKUP($E93,名言集!$B:$E,4,FALSE),"")) ->  | I93: =IF(F93="","",IFERROR(MATCH(E93,名言集!B:B,0),"")) -> 
E94: 88 | F94: =IF($B$5="","",IFERROR(VLOOKUP($E94,名言集!$B:$E,2,FALSE),"")) ->  | G94: =IF($B$5="","",IFERROR(VLOOKUP($E94,名言集!$B:$E,3,FALSE),"")) ->  | H94: =IF($B$5="","",IFERROR(VLOOKUP($E94,名言集!$B:$E,4,FALSE),"")) ->  | I94: =IF(F94="","",IFERROR(MATCH(E94,名言集!B:B,0),"")) -> 
E95: 89 | F95: =IF($B$5="","",IFERROR(VLOOKUP($E95,名言集!$B:$E,2,FALSE),"")) ->  | G95: =IF($B$5="","",IFERROR(VLOOKUP($E95,名言集!$B:$E,3,FALSE),"")) ->  | H95: =IF($B$5="","",IFERROR(VLOOKUP($E95,名言集!$B:$E,4,FALSE),"")) ->  | I95: =IF(F95="","",IFERROR(MATCH(E95,名言集!B:B,0),"")) -> 
E96: 90 | F96: =IF($B$5="","",IFERROR(VLOOKUP($E96,名言集!$B:$E,2,FALSE),"")) ->  | G96: =IF($B$5="","",IFERROR(VLOOKUP($E96,名言集!$B:$E,3,FALSE),"")) ->  | H96: =IF($B$5="","",IFERROR(VLOOKUP($E96,名言集!$B:$E,4,FALSE),"")) ->  | I96: =IF(F96="","",IFERROR(MATCH(E96,名言集!B:B,0),"")) -> 
E97: 91 | F97: =IF($B$5="","",IFERROR(VLOOKUP($E97,名言集!$B:$E,2,FALSE),"")) ->  | G97: =IF($B$5="","",IFERROR(VLOOKUP($E97,名言集!$B:$E,3,FALSE),"")) ->  | H97: =IF($B$5="","",IFERROR(VLOOKUP($E97,名言集!$B:$E,4,FALSE),"")) ->  | I97: =IF(F97="","",IFERROR(MATCH(E97,名言集!B:B,0),"")) -> 
E98: 92 | F98: =IF($B$5="","",IFERROR(VLOOKUP($E98,名言集!$B:$E,2,FALSE),"")) ->  | G98: =IF($B$5="","",IFERROR(VLOOKUP($E98,名言集!$B:$E,3,FALSE),"")) ->  | H98: =IF($B$5="","",IFERROR(VLOOKUP($E98,名言集!$B:$E,4,FALSE),"")) ->  | I98: =IF(F98="","",IFERROR(MATCH(E98,名言集!B:B,0),"")) -> 
E99: 93 | F99: =IF($B$5="","",IFERROR(VLOOKUP($E99,名言集!$B:$E,2,FALSE),"")) ->  | G99: =IF($B$5="","",IFERROR(VLOOKUP($E99,名言集!$B:$E,3,FALSE),"")) ->  | H99: =IF($B$5="","",IFERROR(VLOOKUP($E99,名言集!$B:$E,4,FALSE),"")) ->  | I99: =IF(F99="","",IFERROR(MATCH(E99,名言集!B:B,0),"")) -> 
E100: 94 | F100: =IF($B$5="","",IFERROR(VLOOKUP($E100,名言集!$B:$E,2,FALSE),"")) ->  | G100: =IF($B$5="","",IFERROR(VLOOKUP($E100,名言集!$B:$E,3,FALSE),"")) ->  | H100: =IF($B$5="","",IFERROR(VLOOKUP($E100,名言集!$B:$E,4,FALSE),"")) ->  | I100: =IF(F100="","",IFERROR(MATCH(E100,名言集!B:B,0),"")) -> 
E101: 95 | F101: =IF($B$5="","",IFERROR(VLOOKUP($E101,名言集!$B:$E,2,FALSE),"")) ->  | G101: =IF($B$5="","",IFERROR(VLOOKUP($E101,名言集!$B:$E,3,FALSE),"")) ->  | H101: =IF($B$5="","",IFERROR(VLOOKUP($E101,名言集!$B:$E,4,FALSE),"")) ->  | I101: =IF(F101="","",IFERROR(MATCH(E101,名言集!B:B,0),"")) -> 
E102: 96 | F102: =IF($B$5="","",IFERROR(VLOOKUP($E102,名言集!$B:$E,2,FALSE),"")) ->  | G102: =IF($B$5="","",IFERROR(VLOOKUP($E102,名言集!$B:$E,3,FALSE),"")) ->  | H102: =IF($B$5="","",IFERROR(VLOOKUP($E102,名言集!$B:$E,4,FALSE),"")) ->  | I102: =IF(F102="","",IFERROR(MATCH(E102,名言集!B:B,0),"")) -> 
E103: 97 | F103: =IF($B$5="","",IFERROR(VLOOKUP($E103,名言集!$B:$E,2,FALSE),"")) ->  | G103: =IF($B$5="","",IFERROR(VLOOKUP($E103,名言集!$B:$E,3,FALSE),"")) ->  | H103: =IF($B$5="","",IFERROR(VLOOKUP($E103,名言集!$B:$E,4,FALSE),"")) ->  | I103: =IF(F103="","",IFERROR(MATCH(E103,名言集!B:B,0),"")) -> 
E104: 98 | F104: =IF($B$5="","",IFERROR(VLOOKUP($E104,名言集!$B:$E,2,FALSE),"")) ->  | G104: =IF($B$5="","",IFERROR(VLOOKUP($E104,名言集!$B:$E,3,FALSE),"")) ->  | H104: =IF($B$5="","",IFERROR(VLOOKUP($E104,名言集!$B:$E,4,FALSE),"")) ->  | I104: =IF(F104="","",IFERROR(MATCH(E104,名言集!B:B,0),"")) -> 
E105: 99 | F105: =IF($B$5="","",IFERROR(VLOOKUP($E105,名言集!$B:$E,2,FALSE),"")) ->  | G105: =IF($B$5="","",IFERROR(VLOOKUP($E105,名言集!$B:$E,3,FALSE),"")) ->  | H105: =IF($B$5="","",IFERROR(VLOOKUP($E105,名言集!$B:$E,4,FALSE),"")) ->  | I105: =IF(F105="","",IFERROR(MATCH(E105,名言集!B:B,0),"")) -> 
E106: 100 | F106: =IF($B$5="","",IFERROR(VLOOKUP($E106,名言集!$B:$E,2,FALSE),"")) ->  | G106: =IF($B$5="","",IFERROR(VLOOKUP($E106,名言集!$B:$E,3,FALSE),"")) ->  | H106: =IF($B$5="","",IFERROR(VLOOKUP($E106,名言集!$B:$E,4,FALSE),"")) ->  | I106: =IF(F106="","",IFERROR(MATCH(E106,名言集!B:B,0),"")) -> 

Sheet 名言集 (hidden)
A1: =IFERROR(FIND(作業!$B$5,名言集!C1),IFERROR(FIND(作業!$B$5,名言集!D1),"")) -> 1 | B1: =IF(A1="",0,1) -> 1 | C1: あなたの心が正しいと思うことをしなさい。どっちにしたって批判されるのだから。 | D1: エレノア・ルーズベルト | E1: 米国のファーストレディ、人権活動家 / 1884～1962
A2: =IFERROR(FIND(作業!$B$5,名言集!C2),IFERROR(FIND(作業!$B$5,名言集!D2),"")) -> 1 | B2: =IF(A2="",B1,B1+1) -> 2 | C2: 前進をしない人は、後退をしているのだ。 | D2: ゲーテ | E2: ドイツの詩人、小説家、劇作家 / 1749～1832
A3: =IFERROR(FIND(作業!$B$5,名言集!C3),IFERROR(FIND(作業!$B$5,名言集!D3),"")) -> 1 | B3: =IF(A3="",B2,B2+1) -> 3 | C3: どんなに悔いても過去は変わらない。どれほど心配したところで未来もどうなるものでもない。いま、現在に最善を尽くすことである。 | D3: 松下幸之助 | E3: 日本の実業家、発明家、パナソニック創業者 / 1894～1989
A4: =IFERROR(FIND(作業!$B$5,名言集!C4),IFERROR(FIND(作業!$B$5,名言集!D4),"")) -> 1 | B4: 4 | C4: 最も重要な決定とは、何をするかではなく、何をしないかを決めることだ。 | D4: スティーブ・ジョブズ | E4: 米国の実業家、アップル創業者 / 1955～2011
A5: =IFERROR(FIND(作業!$B$5,名言集!C5),IFERROR(FIND(作業!$B$5,名言集!D5),"")) -> 1 | B5: 5 | C5: 人生は楽ではない。そこが面白い。 | D5: 武者小路実篤 | E5: 日本の小説家、詩人、劇作家、画家 / 1885～1976
A6: =IFERROR(FIND(作業!$B$5,名言集!C6),IFERROR(FIND(作業!$B$5,名言集!D6),"")) -> 1 | B6: 6 | C6: 自分で自分をあきらめなければ、人生に「負け」はない。 | D6: 斎藤茂太 | E6: 日本の精神科医、随筆家 / 1916～2006
A7: =IFERROR(FIND(作業!$B$5,名言集!C7),IFERROR(FIND(作業!$B$5,名言集!D7),"")) -> 1 | B7: 7 | C7: 数えきれないほど、悔しい思いをしてきたけれどその度にお袋の「我慢しなさい」って言葉を思い浮かべて、なんとか笑ってきたんです。 | D7: 手塚治虫 | E7: 日本の漫画家、アニメーター、医学博士 / 1928～1989
A8: =IFERROR(FIND(作業!$B$5,名言集!C8),IFERROR(FIND(作業!$B$5,名言集!D8),"")) -> 1 | B8: 8 | C8: 人生は公平ではない。そのことに慣れよう。 | D8: ビル・ゲイツ | E8: 米国の実業家、マイクロソフト社の創業者 / 1955～
A9: =IFERROR(FIND(作業!$B$5,名言集!C9),IFERROR(FIND(作業!$B$5,名言集!D9),"")) -> 1 | B9: 9 | C9: 親切にしなさい。あなたが会う人はみんな、厳しい闘いをしているのだから。 | D9: プラトン | E9: 古代ギリシアの哲学者 / 紀元前427～前347
A10: =IFERROR(FIND(作業!$B$5,名言集!C10),IFERROR(FIND(作業!$B$5,名言集!D10),"")) -> 1 | B10: 10 | C10: 善人はこの世で多くの害をなす。彼らがなす最大の害は、人びとを善人と悪人に分けてしまうことだ。 | D10: オスカー・ワイルド | E10: アイルランドの詩人、作家、劇作家 / 1854～1900
A11: =IFERROR(FIND(作業!$B$5,名言集!C11),IFERROR(FIND(作業!$B$5,名言集!D11),"")) -> 1 | B11: 11 | C11: 過ちを改めるには、自分が間違いを犯したと自覚すれば、それでよい。そのことをさっぱり思いすてて、ただちに一歩を踏み出すことが大事である。 | D11: 西郷隆盛 | E11: 幕末の薩摩藩士、維新の三傑の一人 / 1828～1877
A12: =IFERROR(FIND(作業!$B$5,名言集!C12),IFERROR(FIND(作業!$B$5,名言集!D12),"")) -> 1 | B12: 12 | C12: 今日一日、怒らず、恐れず、悲しまず、正直、親切、愉快に生きよ。 | D12: 中村天風 | E12: 日本初のヨーガ行者、天風会の創始者 / 1876～1968
A13: =IFERROR(FIND(作業!$B$5,名言集!C13),IFERROR(FIND(作業!$B$5,名言集!D13),"")) -> 1 | B13: 13 | C13: 心の底からやりたいと思わないなら、やめておけ。 | D13: ヘミングウェイ | E13: 米国の小説家、ノーベル文学賞受賞 / 1899～1961
A14: =IFERROR(FIND(作業!$B$5,名言集!C14),IFERROR(FIND(作業!$B$5,名言集!D14),"")) -> 1 | B14: 14 | C14: 何であれ、怒りから始まったものは、恥にまみれて終わる。 | D14: ベンジャミン・フランクリン | E14: 米国の政治家、外交官、物理学者 / 1706～1790
A15: =IFERROR(FIND(作業!$B$5,名言集!C15),IFERROR(FIND(作業!$B$5,名言集!D15),"")) -> 1 | B15: 15 | C15: 自分で薪を割れ、二重に温まる。 | D15: ヘンリー・フォード | E15: 米国のフォード・モーター創業者 / 1863～1947
A16: =IFERROR(FIND(作業!$B$5,名言集!C16),IFERROR(FIND(作業!$B$5,名言集!D16),"")) -> 1 | B16: 16 | C16: 人生とは、人生以外のことを夢中で考えているときにあるんだよ。 | D16: ジョン・レノン | E16: 英国のミュージシャン、ビートルズのリーダー / 1940～1980
A17: =IFERROR(FIND(作業!$B$5,名言集!C17),IFERROR(FIND(作業!$B$5,名言集!D17),"")) -> 1 | B17: 17 | C17: 一日一字を記さば一年にして三百六十字を得、一夜一時を怠らば、百歳の間三万六千時を失う。 | D17: 吉田松陰 | E17: 幕末の長州藩士、明治維新の精神的指導者 / 1830～1859
A18: =IFERROR(FIND(作業!$B$5,名言集!C18),IFERROR(FIND(作業!$B$5,名言集!D18),"")) -> 1 | B18: 18 | C18: 自分の価値は自分で決めることさ。つらくて貧乏でも自分で自分を殺すことだけはしちゃいけねぇよ。 | D18: 勝海舟 | E18: 幕末の武士（幕臣、政治家 / 1823～1899
A19: =IFERROR(FIND(作業!$B$5,名言集!C19),IFERROR(FIND(作業!$B$5,名言集!D19),"")) -> 1 | B19: 19 | C19: 一人前になるには50年はかかるんだ。功を焦るな。悲観するな。もっと根を深く張るんだ。根を深く張れ。 | D19: 升田幸三 | E19: 日本の将棋棋士、実力制第四代名人 / 1918～1991
A20: =IFERROR(FIND(作業!$B$5,名言集!C20),IFERROR(FIND(作業!$B$5,名言集!D20),"")) -> 1 | B20: 20 | C20: 我、神仏を尊びて、神仏を頼らず。 | D20: 宮本武蔵 | E20: 江戸時代初期の剣術家、兵法家 / 1584～1645
A21: =IFERROR(FIND(作業!$B$5,名言集!C21),IFERROR(FIND(作業!$B$5,名言集!D21),"")) -> 1 | B21: 21 | C21: 人は負けることを知りて、人より勝れり。 | D21: 徳川家康 | E21: 戦国時代の武将、江戸幕府の初代征夷大将軍 / 1543～1616
A22: =IFERROR(FIND(作業!$B$5,名言集!C22),IFERROR(FIND(作業!$B$5,名言集!D22),"")) -> 1 | B22: 22 | C22: 努力は必ず報われる。もし報われない努力があるのならば、それはまだ努力と呼べない。 | D22: 王貞治 | E22: 日本の元プロ野球選手、監督 / 1940～
A23: =IFERROR(FIND(作業!$B$5,名言集!C23),IFERROR(FIND(作業!$B$5,名言集!D23),"")) -> 1 | B23: 23 | C23: 日本人は、失敗ということを恐れすぎるようである。どだい、失敗を恐れて何もしないなんて人間は、最低なのである。 | D23: 本田宗一郎 | E23: 日本の実業家、技術者、ホンダの創業者 / 1906～1991
A24: =IFERROR(FIND(作業!$B$5,名言集!C24),IFERROR(FIND(作業!$B$5,名言集!D24),"")) -> 1 | B24: 24 | C24: 愛はお互いを見つめ合うことではなく、ともに同じ方向を見つめることである。 | D24: サン＝テグジュペリ | E24: フランスの作家、操縦士 / 1900～1944
A25: =IFERROR(FIND(作業!$B$5,名言集!C25),IFERROR(FIND(作業!$B$5,名言集!D25),"")) -> 1 | B25: 25 | C25: 独立の気力なき者は必ず人に依頼す、人に依頼する者は必ず人を恐る、人を恐るる者は必ず人にへつらうものなり。 | D25: 福沢諭吉 | E25: 幕末から明治初期の中津藩士、啓蒙思想家、教育者 / 1835～1901
A26: =IFERROR(FIND(作業!$B$5,名言集!C26),IFERROR(FIND(作業!$B$5,名言集!D26),"")) -> 1 | B26: 26 | C26: 微笑めば友達ができる。しかめっ面をすればしわができる。 | D26: ジョージ・エリオット | E26: 英国の女性作家 / 1819～1880
A27: =IFERROR(FIND(作業!$B$5,名言集!C27),IFERROR(FIND(作業!$B$5,名言集!D27),"")) -> 1 | B27: 27 | C27: 他人を押さえつけている限り、自分もそこから動くことはできない。 | D27: ジョージ・ワシントン | E27: 米国の軍人、政治家、米国初代大統領 / 1732～1799
A28: =IFERROR(FIND(作業!$B$5,名言集!C28),IFERROR(FIND(作業!$B$5,名言集!D28),"")) -> 1 | B28: 28 | C28: 結婚してようがしてまいが、あなたが幸せならそれが幸せなのよ。 | D28: グレタ・ガルボ | E28: スウェーデン出身のハリウッド女優 / 1905～1990
A29: =IFERROR(FIND(作業!$B$5,名言集!C29),IFERROR(FIND(作業!$B$5,名言集!D29),"")) -> 1 | B29: 29 | C29: あなたの運命が形作られるのは、あなたが決断する瞬間なのです。 | D29: アンソニー・ロビンズ | E29: 米国の自己啓発書作家、講演家 / 1960～
A30: =IFERROR(FIND(作業!$B$5,名言集!C30),IFERROR(FIND(作業!$B$5,名言集!D30),"")) -> 1 | B30: 30 | C30: 雲の向こうは、いつも青空。 | D30: ルイーザ・メイ・オルコット | E30: 米国の女性小説家 / 1832～1888
A31: =IFERROR(FIND(作業!$B$5,名言集!C31),IFERROR(FIND(作業!$B$5,名言集!D31),"")) -> 1 | B31: 31 | C31: 誰かのことを批判したくなったときには、世間のすべての人がおまえのように恵まれているわけではないということをちょっと思いだしてみるのだ。 | D31: スコット・フィッツジェラルド | E31: 米国の小説家 / 1896～1940
A32: =IFERROR(FIND(作業!$B$5,名言集!C32),IFERROR(FIND(作業!$B$5,名言集!D32),"")) -> 1 | B32: 32 | C32: タフでなければ生きて行けない。優しくなれなければ生きている資格がない。 | D32: レイモンド・チャンドラー | E32: 米国のハードボイルド作家 / 1888～1959
A33: =IFERROR(FIND(作業!$B$5,名言集!C33),IFERROR(FIND(作業!$B$5,名言集!D33),"")) -> 1 | B33: 33 | C33: つらい道を避けないこと。自分の目指す場所にたどりつくためには進まなければ。 | D33: キャサリン・アン・ポーター | E33: 米国の小説家 / 1890～1980
A34: =IFERROR(FIND(作業!$B$5,名言集!C34),IFERROR(FIND(作業!$B$5,名言集!D34),"")) -> 1 | B34: 34 | C34: 女は、人生で一度や二度は、ワルい男を愛してしまうの。でもだからこそ、イイ男に出会ったとき、感謝する気持ちになれるのよ。 | D34: マージョリー・キナン・ローリングス | E34: 米国の小説家『子鹿物語』著者 / 1896～1953
A35: =IFERROR(FIND(作業!$B$5,名言集!C35),IFERROR(FIND(作業!$B$5,名言集!D35),"")) -> 1 | B35: 35 | C35: 自分ならできると思う。あるいは自分にはできないと思う。どちらも正しいの。 | D35: メアリー・ケイ・アッシュ | E35: 米国の化粧品会社創業者 / 1918～2001
A36: =IFERROR(FIND(作業!$B$5,名言集!C36),IFERROR(FIND(作業!$B$5,名言集!D36),"")) -> 1 | B36: 36 | C36: 問いを投げる年もあれば、答える年もある。 | D36: ゾラ・ニール・ハーストン | E36: 米国の黒人女性作家 / 1891～1960
A37: =IFERROR(FIND(作業!$B$5,名言集!C37),IFERROR(FIND(作業!$B$5,名言集!D37),"")) -> 1 | B37: 37 | C37: 人の価値とは、その人が得たものではなく、その人が与えたもので測られる。 | D37: アインシュタイン | E37: 理論物理学者、ノーベル物理学賞受賞 / 1879～1955
A38: =IFERROR(FIND(作業!$B$5,名言集!C38),IFERROR(FIND(作業!$B$5,名言集!D38),"")) -> 1 | B38: 38 | C38: 神様は私たちに、成功してほしいなんて思っていません。ただ、挑戦することを望んでいるだけよ。 | D38: マザー・テレサ | E38: カトリック修道女、ノーベル平和賞受賞 / 1910～1997
A39: =IFERROR(FIND(作業!$B$5,名言集!C39),IFERROR(FIND(作業!$B$5,名言集!D39),"")) -> 1 | B39: 39 | C39: あなたがやれる最善を尽くしたなら、心配したって事態は良くならない。私もいろいろなことを心配するが、ダムからあふれる水までは心配しない。 | D39: ウォルト・ディズニー | E39: 米国のエンターテイナー、実業家 / 1901～1966
A40: =IFERROR(FIND(作業!$B$5,名言集!C40),IFERROR(FIND(作業!$B$5,名言集!D40),"")) -> 1 | B40: 40 | C40: 人生とは自分を見つけることではない。人生とは自分を創ることである。 | D40: バーナード・ショー | E40: アイルランドの劇作家、ノーベル文学賞受賞 / 1856～1950
A41: =IFERROR(FIND(作業!$B$5,名言集!C41),IFERROR(FIND(作業!$B$5,名言集!D41),"")) -> 1 | B41: 41 | C41: 生き残る種とは、最も強いものではない。最も知的なものでもない。それは、変化に最もよく適応したものである。 | D41: ダーウィン | E41: 英国の自然科学者、『種の起源』著者 / 1809～1882
A42: =IFERROR(FIND(作業!$B$5,名言集!C42),IFERROR(FIND(作業!$B$5,名言集!D42),"")) -> 1 | B42: 42 | C42: 何より大事なのは、人生を楽しむこと。幸せを感じること、それだけです。 | D42: オードリー・ヘップバーン | E42: 英国の女優 / 1929～1993
A43: =IFERROR(FIND(作業!$B$5,名言集!C43),IFERROR(FIND(作業!$B$5,名言集!D43),"")) -> 1 | B43: 43 | C43: ひとつのドアが閉まっている時、もっとたくさんのドアが開いているんだよ。 | D43: ボブ・マーリー | E43: ジャマイカのレゲエミュージシャン / 1945～1981
A44: =IFERROR(FIND(作業!$B$5,名言集!C44),IFERROR(FIND(作業!$B$5,名言集!D44),"")) -> 1 | B44: 44 | C44: ステップ・バイ・ステップ。どんなことでも、何かを達成する場合にとるべき方法はただひとつ、一歩ずつ着実に立ち向かうことだ。これ以外に方法はない。 | D44: マイケル・ジョーダン | E44: 米国のバスケットボール選手 / 1963～
A45: =IFERROR(FIND(作業!$B$5,名言集!C45),IFERROR(FIND(作業!$B$5,名言集!D45),"")) -> 1 | B45: 45 | C45: 神は、我々を人間にするために、何らかの欠点を与える。 | D45: シェイクスピア | E45: 英国の劇作家、詩人 / 1564～1616
A46: =IFERROR(FIND(作業!$B$5,名言集!C46),IFERROR(FIND(作業!$B$5,名言集!D46),"")) -> 1 | B46: 46 | C46: 人間いくつになっても新たな道へ踏み出す時が来る。それまでの苦労や人生体験はその時ための基本教育。 | D46: 美輪明宏 | E46: 日本のシンガーソングライター、俳優、演出家 / 1935～
A47: =IFERROR(FIND(作業!$B$5,名言集!C47),IFERROR(FIND(作業!$B$5,名言集!D47),"")) -> 1 | B47: 47 | C47: 悪とは何か？ – 弱さから生じるすべてのものだ。 | D47: ニーチェ | E47: ドイツの哲学者、古典文献学者 / 1844～1900
A48: =IFERROR(FIND(作業!$B$5,名言集!C48),IFERROR(FIND(作業!$B$5,名言集!D48),"")) -> 1 | B48: 48 | C48: お子さんに「何のために生きるの？」と聞かれたら、「誰かを幸せにするために生きるのよ」と答えてあげてください。 | D48: 瀬戸内寂聴 | E48: 日本の女性小説家、天台宗の尼僧 / 1922～
A49: =IFERROR(FIND(作業!$B$5,名言集!C49),IFERROR(FIND(作業!$B$5,名言集!D49),"")) -> 1 | B49: 49 | C49: どこでプレーしても俺の成長はあるわけで。 | D49: 本田圭佑 | E49: 日本のプロサッカー選手 / 1986～
A50: =IFERROR(FIND(作業!$B$5,名言集!C50),IFERROR(FIND(作業!$B$5,名言集!D50),"")) -> 1 | B50: 50 | C50: きみはあなた自身を創造していると思いなさい。 | D50: 岡本太郎 | E50: 日本の芸術家 / 1911～1996
A51: =IFERROR(FIND(作業!$B$5,名言集!C51),IFERROR(FIND(作業!$B$5,名言集!D51),"")) -> 1 | B51: 51 | C51: 死と同じように避けられないものがある。それは生きることだ。 | D51: チャップリン | E51: 英国の俳優、映画監督、コメディアン、脚本家 / 1889～1977
A52: =IFERROR(FIND(作業!$B$5,名言集!C52),IFERROR(FIND(作業!$B$5,名言集!D52),"")) -> 1 | B52: 52 | C52: 敵が友となる時、敵を滅ぼしたと言えないかね？ | D52: エイブラハム・リンカーン | E52: 米国の第16代大統領 / 1809～1865
A53: =IFERROR(FIND(作業!$B$5,名言集!C53),IFERROR(FIND(作業!$B$5,名言集!D53),"")) -> 1 | B53: 53 | C53: 凧が一番高く上がるのは、風に向かっている時である。風に流されている時ではない。 | D53: ウィンストン・チャーチル | E53: 英国の政治家、ノーベル文学賞受賞 / 1874～1965
A54: =IFERROR(FIND(作業!$B$5,名言集!C54),IFERROR(FIND(作業!$B$5,名言集!D54),"")) -> 1 | B54: 54 | C54: しっかりと準備もしていないのに、目標を語る資格はない。 | D54: イチロー | E54: 日本のプロ野球選手、日本及び米国で活躍 / 1973～
A55: =IFERROR(FIND(作業!$B$5,名言集!C55),IFERROR(FIND(作業!$B$5,名言集!D55),"")) -> 1 | B55: 55 | C55: もし、過ちを犯す自由がないのならば、自由を持つ価値はない。 | D55: ガンジー | E55: インドの弁護士、宗教家、政治指導者 / 1869～1948
A56: =IFERROR(FIND(作業!$B$5,名言集!C56),IFERROR(FIND(作業!$B$5,名言集!D56),"")) -> 1 | B56: 56 | C56: 希望があるところに人生もある。希望が新しい勇気をもたらし、再び強い気持ちにしてくれる。 | D56: アンネ・フランク | E56: 「アンネの日記」著者、ユダヤ系ドイツ人少女 / 1929～1945
A57: =IFERROR(FIND(作業!$B$5,名言集!C57),IFERROR(FIND(作業!$B$5,名言集!D57),"")) -> 1 | B57: 57 | C57: 過去のことを思っちゃダメだよ。何であんなことしたんだろ… って、怒りに変わってくるから。未来のことも思っちゃダメ。大丈夫かな、あはぁ～ん。不安になってくるでしょ？ならば、一所懸命、一つの所に命を懸ける！そうだ！今ここを生きていけば、みんなイキイキするぞ！！ | D57: 松岡修造 | E57: 日本の元プロテニスプレーヤー、スポーツキャスター / 1967～
A58: =IFERROR(FIND(作業!$B$5,名言集!C58),IFERROR(FIND(作業!$B$5,名言集!D58),"")) -> 1 | B58: 58 | C58: 疑わずに最初の一段を登りなさい。階段のすべて見えなくてもいい。とにかく最初の一歩を踏み出すのです。 | D58: キング牧師 | E58: 米国の牧師、公民権運動の指導者 / 1929～1968
A59: =IFERROR(FIND(作業!$B$5,名言集!C59),IFERROR(FIND(作業!$B$5,名言集!D59),"")) -> 1 | B59: 59 | C59: 何の志も無きところに、ぐずぐずして日を送るは、実に大馬鹿者なり | D59: 坂本龍馬 | E59: 幕末の志士、土佐藩郷士 / 1836～1867
A60: =IFERROR(FIND(作業!$B$5,名言集!C60),IFERROR(FIND(作業!$B$5,名言集!D60),"")) -> 1 | B60: 60 | C60: 経験をもたらすのは観察だけなのである。 | D60: ナイチンゲール | E60: 英国の看護師、社会起業家、看護教育学者 / 1820～1910
A61: =IFERROR(FIND(作業!$B$5,名言集!C61),IFERROR(FIND(作業!$B$5,名言集!D61),"")) -> 1 | B61: 61 | C61: 好かれようとしているだけなら、いつでも何でも妥協する用意があり、何も達成しないだろう。 | D61: マーガレット・サッチャー | E61: 英国初の女性首相 / 1925～2013
A62: =IFERROR(FIND(作業!$B$5,名言集!C62),IFERROR(FIND(作業!$B$5,名言集!D62),"")) -> 1 | B62: 62 | C62: なぜ逃げるのか。打たれて命を取られるのか。打たれたからって命を取られるわけないんだ。逃げるな。 | D62: 長嶋茂雄 | E62: 日本の元プロ野球選手、監督 / 1936～
A63: =IFERROR(FIND(作業!$B$5,名言集!C63),IFERROR(FIND(作業!$B$5,名言集!D63),"")) -> 1 | B63: 63 | C63: 人はあらゆる物や人に意味を見出そうとする。これは我々の時代にはびこる病気だ。 | D63: パブロ・ピカソ | E63: スペイン出身の画家、彫刻家 / 1881～1973
A64: =IFERROR(FIND(作業!$B$5,名言集!C64),IFERROR(FIND(作業!$B$5,名言集!D64),"")) -> 1 | B64: 64 | C64: 美しい景色を探すな。景色の中に美しいものを見つけるんだ。 | D64: ゴッホ | E64: オランダ出身のポスト印象派の画家 / 1853～1890
A65: =IFERROR(FIND(作業!$B$5,名言集!C65),IFERROR(FIND(作業!$B$5,名言集!D65),"")) -> 1 | B65: 65 | C65: これはあなたのために書いたのではありません。後世のために書いたのです。 | D65: ベートーヴェン | E65: ドイツの作曲家 / 1770～1827
A66: =IFERROR(FIND(作業!$B$5,名言集!C66),IFERROR(FIND(作業!$B$5,名言集!D66),"")) -> 1 | B66: 66 | C66: どんなに暗くても、星は輝いている。 | D66: エマーソン | E66: 米国の思想家、哲学者、作家、詩人 / 1803～1882
A67: =IFERROR(FIND(作業!$B$5,名言集!C67),IFERROR(FIND(作業!$B$5,名言集!D67),"")) -> 1 | B67: =IF(A67="",B66,B66+1) -> 67 | C67: 待っている間もがんばる人にすべてのものはやってくる。 | D67: トーマス・エジソン | E67: 米国の発明家、起業家 / 1847～1931
A68: =IFERROR(FIND(作業!$B$5,名言集!C68),IFERROR(FIND(作業!$B$5,名言集!D68),"")) -> 1 | B68: 68 | C68: 人間は、その想像力によって支配される。 | D68: ナポレオン・ボナパルト | E68: フランスの皇帝、政治家、軍人 / 1769～1821
A69: =IFERROR(FIND(作業!$B$5,名言集!C69),IFERROR(FIND(作業!$B$5,名言集!D69),"")) -> 1 | B69: 69 | C69: 誰もが世界を変えたいと思うが、誰も自分自身を変えようとは思わない。 | D69: トルストイ | E69: ロシアの小説家、思想家 / 1828～1910
A70: =IFERROR(FIND(作業!$B$5,名言集!C70),IFERROR(FIND(作業!$B$5,名言集!D70),"")) -> 1 | B70: 70 | C70: 真似をするときには、その形ではなく、その心を真似するのがよい。 | D70: 渋沢栄一 | E70: 日本の武士、官僚、実業家、日本資本主義の父 / 1840～1931
A71: =IFERROR(FIND(作業!$B$5,名言集!C71),IFERROR(FIND(作業!$B$5,名言集!D71),"")) -> 1 | B71: 71 | C71: 生きるうえで最も偉大な栄光は、決して転ばないことにあるのではない。転ぶたびに起き上がり続けることにある。 | D71: ネルソン・マンデラ | E71: 南アフリカの政治家、ノーベル平和賞受賞 / 1918～2013
A72: =IFERROR(FIND(作業!$B$5,名言集!C72),IFERROR(FIND(作業!$B$5,名言集!D72),"")) -> 1 | B72: 72 | C72: リスクを取る勇気がなければ、何も達成することがない人生になる。 | D72: モハメド・アリ | E72: 米国の元プロボクサー / 1942～2016 Wikiped
A73: =IFERROR(FIND(作業!$B$5,名言集!C73),IFERROR(FIND(作業!$B$5,名言集!D73),"")) -> 1 | B73: 73 | C73: 自分の判断以上に自分を欺くものはない。 | D73: レオナルド・ダ・ヴィンチ | E73: イタリアのルネサンス期の芸術家 / 1452～1519
A74: =IFERROR(FIND(作業!$B$5,名言集!C74),IFERROR(FIND(作業!$B$5,名言集!D74),"")) -> 1 | B74: 74 | C74: できることから始めるのではなく、正しいことから始めるのです。 | D74: ピーター・ドラッカー | E74: オーストリア出身の経営学者 / 1909～2005
A75: =IFERROR(FIND(作業!$B$5,名言集!C75),IFERROR(FIND(作業!$B$5,名言集!D75),"")) -> 1 | B75: 75 | C75: 唯一の真の英知とは、自分が無知であることを知ることにある。 | D75: ソクラテス | E75: 古代ギリシアの哲学者 / 紀元前469～399
A76: =IFERROR(FIND(作業!$B$5,名言集!C76),IFERROR(FIND(作業!$B$5,名言集!D76),"")) -> 1 | B76: 76 | C76: 恥は、若者にとって名誉であり、老人には屈辱である。 | D76: アリストテレス | E76: 古代ギリシアの哲学者 / 紀元前384～前322
A77: =IFERROR(FIND(作業!$B$5,名言集!C77),IFERROR(FIND(作業!$B$5,名言集!D77),"")) -> 1 | B77: 77 | C77: 天分は、持って生まれるもの。才能は、引き出すものよ。 | D77: ココ・シャネル | E77: フランスのファッションデザイナー / 1883～1971
A78: =IFERROR(FIND(作業!$B$5,名言集!C78),IFERROR(FIND(作業!$B$5,名言集!D78),"")) -> 1 | B78: 78 | C78: 自分が多数派の側にいると気づいたら、もう意見を変えてもいいころだ。 | D78: マーク・トウェイン | E78: 米国の作家、小説家 / 1835～1910
A79: =IFERROR(FIND(作業!$B$5,名言集!C79),IFERROR(FIND(作業!$B$5,名言集!D79),"")) -> 1 | B79: 79 | C79: あせってはいけません。ただ、牛のように、図々しく進んで行くのが大事です。 | D79: 夏目漱石 | E79: 日本の小説家、評論家、英文学者 / 1867～1916
A80: =IFERROR(FIND(作業!$B$5,名言集!C80),IFERROR(FIND(作業!$B$5,名言集!D80),"")) -> 1 | B80: 80 | C80: 笑われて、笑われて、つよくなる。 | D80: 太宰治 | E80: 日本の小説家 / 1909～1948
A81: =IFERROR(FIND(作業!$B$5,名言集!C81),IFERROR(FIND(作業!$B$5,名言集!D81),"")) -> 1 | B81: 81 | C81: 阿呆はいつも彼以外のものを阿呆であると信じている。 | D81: 芥川龍之介 | E81: 日本の小説家 / 1892年～1927年
A82: =IFERROR(FIND(作業!$B$5,名言集!C82),IFERROR(FIND(作業!$B$5,名言集!D82),"")) -> 1 | B82: 82 | C82: 目的と方針がなければ、努力と勇気は十分ではない。 | D82: ジョン・F・ケネディ | E82: 米国の第35代大統領 / 1917～1963
A83: =IFERROR(FIND(作業!$B$5,名言集!C83),IFERROR(FIND(作業!$B$5,名言集!D83),"")) -> 1 | B83: 83 | C83: 私はこれまでの人生でずっと「私は愛されない人間なんだ」と思ってきたの。でも私の人生にはそれよりもっと悪いことがあったと、はじめて気がついたの。私自身、心から人を愛そうとしなかったのよ。 | D83: マリリン・モンロー | E83: 米国の女優 / 1926～1962
A84: =IFERROR(FIND(作業!$B$5,名言集!C84),IFERROR(FIND(作業!$B$5,名言集!D84),"")) -> 1 | B84: 84 | C84: 過ちて改めざる これを過ちという | D84: 孔子 | E84: 春秋時代の中国の思想家、哲学者。儒家の始祖 / 紀元前551年‐紀元前479年
A85: =IFERROR(FIND(作業!$B$5,名言集!C85),IFERROR(FIND(作業!$B$5,名言集!D85),"")) -> 1 | B85: 85 | C85: 人は常に幸福を求めるが、常に幸福に気づかない。 | D85: ルソー | E85: 現在スイスの都市のジュネーヴ共和国出身の哲学者 / 1712～1778
A86: =IFERROR(FIND(作業!$B$5,名言集!C86),IFERROR(FIND(作業!$B$5,名言集!D86),"")) -> 1 | B86: 86 | C86: 人は喜んで自己の望むものを信じるものだ。 | D86: ユリウス・カエサル | E86: 共和政ローマ期の政治家、軍人 / 紀元前100～前44
A87: =IFERROR(FIND(作業!$B$5,名言集!C87),IFERROR(FIND(作業!$B$5,名言集!D87),"")) -> 1 | B87: 87 | C87: どんな愚者でも批判し、非難し、文句を言うことはできる。そして、多くの愚者がそうする。 | D87: デール・カーネギー | E87: 米国の実業家、作家、セミナー講師 / 1888～1955
A88: =IFERROR(FIND(作業!$B$5,名言集!C88),IFERROR(FIND(作業!$B$5,名言集!D88),"")) -> 1 | B88: 88 | C88: 幸福は自己満足によってではなく、価値ある目標に忠実であることによって得られる。 | D88: ヘレン・ケラー | E88: 米国の教育家、社会福祉活動家、著作家 / 1880～1968
A89: =IFERROR(FIND(作業!$B$5,名言集!C89),IFERROR(FIND(作業!$B$5,名言集!D89),"")) -> 1 | B89: 89 | C89: たとえ明日世界が滅亡しようとも、今日私はリンゴの木を植える。 | D89: マルティン・ルター | E89: ドイツの宗教改革者 / 1483～1546
A90: =IFERROR(FIND(作業!$B$5,名言集!C90),IFERROR(FIND(作業!$B$5,名言集!D90),"")) -> 1 | B90: 90 | C90: 結果にはすべて… 原因がある。 | D90: ガリレオ・ガリレイ | E90: イタリアの物理学者、天文学者、哲学者 / 1564～1642
A91: =IFERROR(FIND(作業!$B$5,名言集!C91),IFERROR(FIND(作業!$B$5,名言集!D91),"")) -> 1 | B91: 91 | C91: 自分を相手より利口に見せても愚かに見せても、得る所はない。 | D91: アイザック･ニュートン | E91: 英国の哲学者、物理学者、数学者 / 1643～1727
A92: =IFERROR(FIND(作業!$B$5,名言集!C92),IFERROR(FIND(作業!$B$5,名言集!D92),"")) -> 1 | B92: 92 | C92: 負けて退く人をよわしと思うなよ。知恵の力の強きゆえなり。 | D92: 高杉晋作 | E92: 幕末の志士、長州藩士、奇兵隊を創設 / 1839～1867
A93: =IFERROR(FIND(作業!$B$5,名言集!C93),IFERROR(FIND(作業!$B$5,名言集!D93),"")) -> 1 | B93: 93 | C93: 目的を達成する為には人間対人間のうじうじした関係に沈みこんでいたら物事は進まない。そういうものを振り切って、前に進む。 | D93: 大久保利通 | E93: 幕末の薩摩藩士、政治家、維新の三傑の一人 / 1830～1878
A94: =IFERROR(FIND(作業!$B$5,名言集!C94),IFERROR(FIND(作業!$B$5,名言集!D94),"")) -> 1 | B94: 94 | C94: 自分を愛せない人を他人は決して愛しません。人から愛されたいと思うなら、まず自分自身を愛することから始めなさい。 | D94: ジョセフ・マーフィー | E94: アイルランド出身の宗教者、著述家 / 1898～1981
A95: =IFERROR(FIND(作業!$B$5,名言集!C95),IFERROR(FIND(作業!$B$5,名言集!D95),"")) -> 1 | B95: 95 | C95: 同じ方法で悪くなる。だから捨てなきゃいけない。せっかく長年築きあげてきたものでも変えていかなくてはならない。 | D95: 羽生善治 | E95: 日本の将棋棋士、十九世名人 / 1970～
A96: =IFERROR(FIND(作業!$B$5,名言集!C96),IFERROR(FIND(作業!$B$5,名言集!D96),"")) -> 1 | B96: 96 | C96: もう一押しこそ慎重になれ。 | D96: 武田信玄 | E96: 戦国時代の武将、甲斐の守護大名、戦国大名 / 1521～157
A97: =IFERROR(FIND(作業!$B$5,名言集!C97),IFERROR(FIND(作業!$B$5,名言集!D97),"")) -> 1 | B97: 97 | C97: 攻撃を一点に集約せよ、無駄な事はするな。 | D97: 織田信長 | E97: 戦国時代の武将、戦国大名 / 1534～1582
A98: =IFERROR(FIND(作業!$B$5,名言集!C98),IFERROR(FIND(作業!$B$5,名言集!D98),"")) -> 1 | B98: 98 | C98: 落ちたら、またはいあがってくればいいだけのこと。 | D98: アントニオ猪木 | E98: 日本の元プロレスラー、政治家 / 1943～
A99: =IFERROR(FIND(作業!$B$5,名言集!C99),IFERROR(FIND(作業!$B$5,名言集!D99),"")) -> 1 | B99: 99 | C99: 楽を求めたら、苦しみしか待っていない。 | D99: 野村克也 | E99: 日本の元プロ野球選手、監督、野球評論家 / 1935～
A100: =IFERROR(FIND(作業!$B$5,名言集!C100),IFERROR(FIND(作業!$B$5,名言集!D100),"")) -> 1 | B100: 100 | C100: 信じて投げて打たれるのはいい。信じて投げて打たれたのなら、それは結果。一番いけないのは、やる前から打たれたらどうしようと考えること。 | D100: 落合博満 | E100: 日本の元プロ野球選手、監督 / 1953～
A101: =IFERROR(FIND(作業!$B$5,名言集!C101),IFERROR(FIND(作業!$B$5,名言集!D101),"")) -> 1 | B101: 101 | C101: 言いたいのは、それひとつだよ。その生き方を人のせいにしちゃダメだ。 | D101: 矢沢永吉 | E101: 日本のロックミュージシャン / 1949～
A102: =IFERROR(FIND(作業!$B$5,名言集!C102),IFERROR(FIND(作業!$B$5,名言集!D102),"")) -> 1 | B102: 102 | C102: 人は原理主義に取り込まれると、魂の柔らかい部分を失っていきます。そして自分の力で感じ取り、考えることを放棄してしまう。 | D102: 村上春樹 | E102: 日本の小説家、翻訳家 / 1949～
A103: =IFERROR(FIND(作業!$B$5,名言集!C103),IFERROR(FIND(作業!$B$5,名言集!D103),"")) -> 1 | B103: 103 | C103: あなたの傷を知恵に変えなさい。 | D103: オプラ・ウィンフリー | E103: 米国の女性テレビ司会者、女優 / 1954～
A104: =IFERROR(FIND(作業!$B$5,名言集!C104),IFERROR(FIND(作業!$B$5,名言集!D104),"")) -> 1 | B104: 104 | C104: 最も平安な、そして純粋な喜びの一つは、労働をした後の休息である。 | D104: カント | E104: ドイツの哲学者 / 1724～1804
A105: =IFERROR(FIND(作業!$B$5,名言集!C105),IFERROR(FIND(作業!$B$5,名言集!D105),"")) -> 1 | B105: 105 | C105: 青春が幸福なのは、美しいものを見る能力を備えているためです。美しいものを見る能力を保っていれば、人は決して老いぬものです。 | D105: カフカ | E105: 現在のチェコ出身の小説家、「変身」の著者 / 1883～1924
A106: =IFERROR(FIND(作業!$B$5,名言集!C106),IFERROR(FIND(作業!$B$5,名言集!D106),"")) -> 1 | B106: 106 | C106: 信念を持たない人間は、あらゆることに流される。 | D106: マルコムX | E106: 米国の黒人公民権運動家 / 1925～1965
A107: =IFERROR(FIND(作業!$B$5,名言集!C107),IFERROR(FIND(作業!$B$5,名言集!D107),"")) -> 1 | B107: 107 | C107: 自分自身を信じている者だけが、他人にたいして誠実になれる。 | D107: エーリッヒ・フロム | E107: ドイツの社会心理学者、精神分析学者 / 1900～1980
A108: =IFERROR(FIND(作業!$B$5,名言集!C108),IFERROR(FIND(作業!$B$5,名言集!D108),"")) -> 1 | B108: 108 | C108: 友人のために私がしてあげられる一番のこと、それは、ただ友人でいてあげること。 | D108: ソロー | E108: 米国の作家、詩人、思想家 / 1817～1862
A109: =IFERROR(FIND(作業!$B$5,名言集!C109),IFERROR(FIND(作業!$B$5,名言集!D109),"")) -> 1 | B109: 109 | C109: 幸福は幸福の中にあるのではなく、それを手に入れる過程の中だけにある。 | D109: ドストエフスキー | E109: ロシアの小説家、思想家 / 1821～1881
A110: =IFERROR(FIND(作業!$B$5,名言集!C110),IFERROR(FIND(作業!$B$5,名言集!D110),"")) -> 1 | B110: 110 | C110: 幸福な人間が良い気分でいられるのは、不幸な人々が自己の重荷を黙々と担ってくれているからに過ぎない。 | D110: チェーホフ | E110: ロシアの劇作家、小説家 / 1860～1904
A111: =IFERROR(FIND(作業!$B$5,名言集!C111),IFERROR(FIND(作業!$B$5,名言集!D111),"")) -> 1 | B111: 111 | C111: 世の中で成功を収めるには、馬鹿のように見せかけ、利口に行動することである。 | D111: モンテスキュー | E111: フランスの哲学者 / 1689～1755
A112: =IFERROR(FIND(作業!$B$5,名言集!C112),IFERROR(FIND(作業!$B$5,名言集!D112),"")) -> 1 | B112: 112 | C112: 生きることは音楽的であること。体内の血が踊り出すところから始まる。すべての生命がリズムを刻んでいる。君は、君の音楽を感じているかい？ | D112: マイケル・ジャクソン | E112: 米国のシンガーソングライター / 1958～2009
A113: =IFERROR(FIND(作業!$B$5,名言集!C113),IFERROR(FIND(作業!$B$5,名言集!D113),"")) -> 1 | B113: 113 | C113: 多くのことをなす近道は、一度にひとつのことだけをすることだ。 | D113: モーツァルト | E113: オーストリアの作曲家、演奏家 / 1756～1791
A114: =IFERROR(FIND(作業!$B$5,名言集!C114),IFERROR(FIND(作業!$B$5,名言集!D114),"")) -> 1 | B114: 114 | C114: 自信とは、問題の本質を理解していないときに現れるものだ。 | D114: ウディ・アレン | E114: 米国の映画監督、俳優、脚本家 / 1935～
A115: =IFERROR(FIND(作業!$B$5,名言集!C115),IFERROR(FIND(作業!$B$5,名言集!D115),"")) -> 1 | B115: 115 | C115: 君の立場になれば君が正しい。僕の立場になれば僕が正しい。 | D115: ボブ・ディラン | E115: 米国のミュージシャン / 1941～
A116: =IFERROR(FIND(作業!$B$5,名言集!C116),IFERROR(FIND(作業!$B$5,名言集!D116),"")) -> 1 | B116: 116 | C116: 汝自身より優れた忠告を言うものなし。 | D116: キケロ | E116: 共和政ローマの政治家、文筆家、哲学者 / 紀元前106～前43
A117: =IFERROR(FIND(作業!$B$5,名言集!C117),IFERROR(FIND(作業!$B$5,名言集!D117),"")) -> 1 | B117: 117 | C117: この世には、愛する人と愛される自分になろうとする人がいる。 | D117: サマセット・モーム | E117: 英国の劇作家、小説家 / 1874～1965
A118: =IFERROR(FIND(作業!$B$5,名言集!C118),IFERROR(FIND(作業!$B$5,名言集!D118),"")) -> 1 | B118: 118 | C118: 後悔とは、やってしまったことにするものじゃなくて、やらなかったことにするもの。だから私はチャンスがきたら必ずトライするわ。 | D118: キャメロン・ディアス | E118: 米国の女優 / 1972～
A119: =IFERROR(FIND(作業!$B$5,名言集!C119),IFERROR(FIND(作業!$B$5,名言集!D119),"")) -> 1 | B119: 119 | C119: 復讐する時、人間はその仇敵と同列である。しかし、許す時、彼は仇敵よりも上にある。 | D119: フランシス・ベーコン | E119: 英国の哲学者、神学者、法学者 / 1561～1626
A120: =IFERROR(FIND(作業!$B$5,名言集!C120),IFERROR(FIND(作業!$B$5,名言集!D120),"")) -> 1 | B120: 120 | C120: 目隠しした馬の様に範囲の限定された目的は、必ずその持ち主の視野を狭くする。 | D120: ロバート・フロスト | E120: 米国の詩人 / 1874～1963
A121: =IFERROR(FIND(作業!$B$5,名言集!C121),IFERROR(FIND(作業!$B$5,名言集!D121),"")) -> 1 | B121: 121 | C121: だれかを崇拝しすぎると、ほんとうの自由は得られないんだよ。 | D121: トーベ・ヤンソン | E121: フィンランドの画家、小説家、児童文学作家 / 1914～2001
A122: =IFERROR(FIND(作業!$B$5,名言集!C122),IFERROR(FIND(作業!$B$5,名言集!D122),"")) -> 1 | B122: 122 | C122: 内乱では国は滅びない。戦争では国が滅びる。 | D122: 山本五十六 | E122: 日本の元帥海軍大将 / 1884～1943
A123: =IFERROR(FIND(作業!$B$5,名言集!C123),IFERROR(FIND(作業!$B$5,名言集!D123),"")) -> 1 | B123: 123 | C123: 主人は無理をいうなるものと知れ。 | D123: 豊臣秀吉 | E123: 戦国時代の武将、天下統一を果たす / 1537～1598
A124: =IFERROR(FIND(作業!$B$5,名言集!C124),IFERROR(FIND(作業!$B$5,名言集!D124),"")) -> 1 | B124: 124 | C124: 好調なビジネスは、何よりも魅力的な芸術だ。 | D124: アンディ・ウォーホル | E124: 米国の芸術家、ポップアートの旗手 / 1928～1987
A125: =IFERROR(FIND(作業!$B$5,名言集!C125),IFERROR(FIND(作業!$B$5,名言集!D125),"")) -> 1 | B125: 125 | C125: 自由はもちろん金で買えるものではない。だが、金のために売り払うことは出来る。 | D125: 魯迅 | E125: 中国の小説家、思想家 / 1881～1936
A126: =IFERROR(FIND(作業!$B$5,名言集!C126),IFERROR(FIND(作業!$B$5,名言集!D126),"")) -> 1 | B126: 126 | C126: 人間は自由であり、つねに自分自身の選択によって行動すべきものである。 | D126: サルトル | E126: フランスの哲学者、小説家、劇作家 / 1905～1980
A127: =IFERROR(FIND(作業!$B$5,名言集!C127),IFERROR(FIND(作業!$B$5,名言集!D127),"")) -> 1 | B127: 127 | C127: 環境より学ぶ意志があればいい。 | D127: 津田梅子 | E127: 日本の教育者、日本女子教育の先駆者 / 1864～1929
A128: =IFERROR(FIND(作業!$B$5,名言集!C128),IFERROR(FIND(作業!$B$5,名言集!D128),"")) -> 1 | B128: 128 | C128: 今日の成果は過去の努力の結果であり、未来はこれからの努力で決まる。 | D128: 稲盛和夫 | E128: 日本の実業家、京セラ、KDDIの創業者 / 1932～
A129: =IFERROR(FIND(作業!$B$5,名言集!C129),IFERROR(FIND(作業!$B$5,名言集!D129),"")) -> 1 | B129: 129 | C129: 井の中の蛙、大海を知らず。 | D129: 荘子 | E129: 中国戦国時代の思想家、道教の始祖の一人 / 紀元前369～前286
A130: =IFERROR(FIND(作業!$B$5,名言集!C130),IFERROR(FIND(作業!$B$5,名言集!D130),"")) -> 1 | B130: 130 | C130: 真実は体験するもので、教わるものではない。 | D130: ヘルマン・ヘッセ | E130: ドイツの小説家、詩人、ノーベル文学賞受賞 / 1877～1962
A131: =IFERROR(FIND(作業!$B$5,名言集!C131),IFERROR(FIND(作業!$B$5,名言集!D131),"")) -> 1 | B131: =IF(A131="",B130,B130+1) -> 131 | C131: 英雄とは、自分のできることをする人だ。 | D131: ロマン・ロラン | E131: フランスの作家、ノーベル文学賞受賞 / 1866～1944
A132: =IFERROR(FIND(作業!$B$5,名言集!C132),IFERROR(FIND(作業!$B$5,名言集!D132),"")) -> 1 | B132: 132 | C132: あなたが生きていればいるほど、どうやって生きていくのか、学び続けるんだよ。 | D132: セネカ | E132: ローマ帝国の政治家、哲学者、詩人 / 紀元前1頃～紀元後65
A133: =IFERROR(FIND(作業!$B$5,名言集!C133),IFERROR(FIND(作業!$B$5,名言集!D133),"")) -> 1 | B133: 133 | C133: 私は少しも恐れるところがない。私はこの世界に、何事かをなさんがために生まれてきたのだ。 | D133: 野口英世 | E133: 日本の細菌学者 / 1876～1928
A134: =IFERROR(FIND(作業!$B$5,名言集!C134),IFERROR(FIND(作業!$B$5,名言集!D134),"")) -> 1 | B134: 134 | C134: 生を必するものは死し、死を必するものは生く。 | D134: 上杉謙信 | E134: 戦国時代の越後国の武将、戦国大名 / 1530～1578
A135: =IFERROR(FIND(作業!$B$5,名言集!C135),IFERROR(FIND(作業!$B$5,名言集!D135),"")) -> 1 | B135: 135 | C135: 学ぶことで才能は開花する。志がなければ、学問の完成はない。 | D135: 諸葛孔明 | E135: 中国、三国時代の蜀漢の政治家、軍人 / 181～234
A136: =IFERROR(FIND(作業!$B$5,名言集!C136),IFERROR(FIND(作業!$B$5,名言集!D136),"")) -> 1 | B136: 136 | C136: 正義の尺度は声の多数ではない。 | D136: シラー | E136: ドイツの詩人、歴史学者、劇作家、思想家 / 1759～1805
A137: =IFERROR(FIND(作業!$B$5,名言集!C137),IFERROR(FIND(作業!$B$5,名言集!D137),"")) -> 1 | B137: 137 | C137: 笑い声のないところに成功はない。 | D137: アンドリュー・カーネギー | E137: 米国の実業家、鉄鋼王 / 1835～1919
A138: =IFERROR(FIND(作業!$B$5,名言集!C138),IFERROR(FIND(作業!$B$5,名言集!D138),"")) -> 1 | B138: 138 | C138: 世界ではなく、自分自身を征服せよ。 | D138: デカルト | E138: フランスの哲学者、数学者 / 1596～1650
A139: =IFERROR(FIND(作業!$B$5,名言集!C139),IFERROR(FIND(作業!$B$5,名言集!D139),"")) -> 1 | B139: 139 | C139: 勝つは負ける日の初め、負けるはやがて勝つ日の初め。 | D139: 吉川英治 | E139: 日本の小説家 / 1892～1962
A140: =IFERROR(FIND(作業!$B$5,名言集!C140),IFERROR(FIND(作業!$B$5,名言集!D140),"")) -> 1 | B140: 140 | C140: 他人の感受性を軽蔑してはいけない。感受性はその人の才能なのだ。 | D140: ボードレール | E140: フランスの詩人、評論家 / 1821～1867
A141: =IFERROR(FIND(作業!$B$5,名言集!C141),IFERROR(FIND(作業!$B$5,名言集!D141),"")) -> 1 | B141: 141 | C141: 力は、あなたの弱さの中から生まれるのです。 | D141: ジークムント・フロイト | E141: オーストリアの精神分析学者 / 1856～1939
A142: =IFERROR(FIND(作業!$B$5,名言集!C142),IFERROR(FIND(作業!$B$5,名言集!D142),"")) -> 1 | B142: 142 | C142: 人生という本には、うしろのほうに答えが書いてあるわけじゃない | D142: チャールズ・M・シュルツ | E142: 米国の漫画家、スヌーピーの作者 / 1922～2000
A143: =IFERROR(FIND(作業!$B$5,名言集!C143),IFERROR(FIND(作業!$B$5,名言集!D143),"")) -> 1 | B143: 143 | C143: 足るを知る。 | D143: 老子 | E143: 古代中国の思想家、道教の始祖とされる / 紀元前6世紀など諸説あり
A144: =IFERROR(FIND(作業!$B$5,名言集!C144),IFERROR(FIND(作業!$B$5,名言集!D144),"")) -> 1 | B144: 144 | C144: 大事の義は人に談合せず、一心に究めたるがよし。 | D144: 伊達政宗 | E144: 出羽国と陸奥国の戦国大名、仙台藩の初代藩主 / 1567～1
A145: =IFERROR(FIND(作業!$B$5,名言集!C145),IFERROR(FIND(作業!$B$5,名言集!D145),"")) -> 1 | B145: 145 | C145: 人は強さに欠けているのではない。意志を欠いているのだ。 | D145: ヴィクトル・ユーゴー | E145: フランスのロマン主義の詩人、小説家 / 1802～1885
A146: =IFERROR(FIND(作業!$B$5,名言集!C146),IFERROR(FIND(作業!$B$5,名言集!D146),"")) -> 1 | B146: 146 | C146: 我々は、他の人たちと同じようになろうとして、自分自身の4分の3を喪失してしまう。 | D146: ショーペンハウアー | E146: ドイツの哲学者 / 1788～1860
A147: =IFERROR(FIND(作業!$B$5,名言集!C147),IFERROR(FIND(作業!$B$5,名言集!D147),"")) -> 1 | B147: 147 | C147: 人間とは、己の行った仕事の子供である。 | D147: セルバンテス | E147: スペインの小説家『ドン・キホーテ』著者 / 1547～1616
A148: =IFERROR(FIND(作業!$B$5,名言集!C148),IFERROR(FIND(作業!$B$5,名言集!D148),"")) -> 1 | B148: 148 | C148: 人は泳げるようになりたいと願いながら、同時に片足を地面につけているものだ。 | D148: マルセル・プルースト | E148: フランスの作家 / 1871～1922
A149: =IFERROR(FIND(作業!$B$5,名言集!C149),IFERROR(FIND(作業!$B$5,名言集!D149),"")) -> 1 | B149: 149 | C149: すべての困難は、あなたへの贈り物を両手に抱えている。 | D149: リチャード・バック | E149: 米国の作家『かもめのジョナサン』著者 / 1936～
A150: =IFERROR(FIND(作業!$B$5,名言集!C150),IFERROR(FIND(作業!$B$5,名言集!D150),"")) -> 1 | B150: 150 | C150: どんなことにも教訓はある。君がそれを見つけられるかどうかさ。 | D150: ルイス・キャロル | E150: 英国の作家『不思議の国のアリス』著者 / 1832～1898
A151: =IFERROR(FIND(作業!$B$5,名言集!C151),IFERROR(FIND(作業!$B$5,名言集!D151),"")) -> 1 | B151: 151 | C151: 人生は、後ろ向きにしか理解できないが、前を向いてしか生きられない。 | D151: キルケゴール | E151: デンマークの哲学者、実存主義の創始者 / 1813～1855
A152: =IFERROR(FIND(作業!$B$5,名言集!C152),IFERROR(FIND(作業!$B$5,名言集!D152),"")) -> 1 | B152: 152 | C152: 人間には不幸か、貧乏か、病気が必要だ。でないと人間はすぐに思いあがる。 | D152: ツルゲーネフ | E152: ロシアの小説家 / 1818～1883
A153: =IFERROR(FIND(作業!$B$5,名言集!C153),IFERROR(FIND(作業!$B$5,名言集!D153),"")) -> 1 | B153: 153 | C153: 僕の後ろを歩かないでくれ。僕は導かないかもしれない。僕の前を歩かないでくれ。僕はついていかないかもしれない。ただ僕と一緒に歩いて、友達でいてほしい。 | D153: アルベール・カミュ | E153: フランスの小説家、ノーベル文学賞受賞 / 1913～1960
A154: =IFERROR(FIND(作業!$B$5,名言集!C154),IFERROR(FIND(作業!$B$5,名言集!D154),"")) -> 1 | B154: 154 | C154: 人間は自然のうちで最も弱い一本の葦にすぎない。しかし、それは考える葦である。 | D154: パスカル | E154: フランスの哲学者、思想家、数学者 / 1623～1662
A155: =IFERROR(FIND(作業!$B$5,名言集!C155),IFERROR(FIND(作業!$B$5,名言集!D155),"")) -> 1 | B155: 155 | C155: 私はあなたの意見には反対だ。だがあなたがそれを主張する権利は命をかけて守る。 | D155: ヴォルテール | E155: フランスの哲学者、作家、文学者、歴史家 / 1694～1778
A156: =IFERROR(FIND(作業!$B$5,名言集!C156),IFERROR(FIND(作業!$B$5,名言集!D156),"")) -> 1 | B156: 156 | C156: いかなる人間の知識も、その人の経験を超えるものではない。 | D156: ジョン・ロック | E156: 英国の哲学者 / 1632～1704
A157: =IFERROR(FIND(作業!$B$5,名言集!C157),IFERROR(FIND(作業!$B$5,名言集!D157),"")) -> 1 | B157: 157 | C157: 本当に悪い天気なんてものはない。ただ、さまざまな種類のよい天気があるだけだ。 | D157: ジョン・ラスキン | E157: 英国の美術評論家、社会思想家 / 1819～1900
A158: =IFERROR(FIND(作業!$B$5,名言集!C158),IFERROR(FIND(作業!$B$5,名言集!D158),"")) -> 1 | B158: 158 | C158: それが何であれ、あなたの得意なことが幸福に導いてくれる。 | D158: バートランド・ラッセル | E158: 英国の哲学者、ノーベル文学賞受賞 / 1872～1970
A159: =IFERROR(FIND(作業!$B$5,名言集!C159),IFERROR(FIND(作業!$B$5,名言集!D159),"")) -> 1 | B159: 159 | C159: オレにとって、音楽も人生もスタイルがすべてだ。 | D159: マイルス・デイヴィス | E159: 米国のジャズトランペット奏者 / 1926～1991
A160: =IFERROR(FIND(作業!$B$5,名言集!C160),IFERROR(FIND(作業!$B$5,名言集!D160),"")) -> 1 | B160: 160 | C160: 平和にも勝利がある。戦いの勝利に劣らぬ名だたる勝利が。 | D160: ジョン・ミルトン | E160: 英国の詩人 / 1608～ 1674
A161: =IFERROR(FIND(作業!$B$5,名言集!C161),IFERROR(FIND(作業!$B$5,名言集!D161),"")) -> 1 | B161: 161 | C161: 信念は、行動に移さなければ価値がない。 | D161: トーマス・カーライル | E161: 英国の思想家、歴史家 / 1795～1881
A162: =IFERROR(FIND(作業!$B$5,名言集!C162),IFERROR(FIND(作業!$B$5,名言集!D162),"")) -> 1 | B162: 162 | C162: 他人を許すことのできない人は、自分自身が渡らなければならない橋を壊しているようなものである。人は誰でも許されなければならないからだ。 | D162: トーマス・フラー | E162: 英国の聖職者、歴史家 / 1608～1661
A163: =IFERROR(FIND(作業!$B$5,名言集!C163),IFERROR(FIND(作業!$B$5,名言集!D163),"")) -> 1 | B163: 163 | C163: 私が最も恐れるものこそ、恐れである。 | D163: モンテーニュ | E163: フランスの哲学者、モラリスト / 1533～1592
A164: =IFERROR(FIND(作業!$B$5,名言集!C164),IFERROR(FIND(作業!$B$5,名言集!D164),"")) -> 1 | B164: 164 | C164: われわれは幸福も不幸も大げさに考えすぎている。自分で考えているほど幸福でもないし、かといって決して不幸でもない。 | D164: バルザック | E164: フランスの小説家 / 1799～1850
A165: =IFERROR(FIND(作業!$B$5,名言集!C165),IFERROR(FIND(作業!$B$5,名言集!D165),"")) -> 1 | B165: 165 | C165: 自分が何者であるか知りたいか？尋ねてはいけない。行動だ！行動が君を描きだし、そして明らかにする。 | D165: トーマス・ジェファーソン | E165: 米国の第3代大統領、アメリカ独立宣言の主要な作者 / 1743～1826
A166: =IFERROR(FIND(作業!$B$5,名言集!C166),IFERROR(FIND(作業!$B$5,名言集!D166),"")) -> 1 | B166: 166 | C166: 成功は幸せの鍵ではない。幸せが成功の鍵だ。もし自分のしていることが大好きなら、あなたは成功する。 | D166: アルベルト・シュバイツァー | E166: ドイツ出身の哲学者、医者、ノーベル平和賞受賞 / 1875～1965
A167: =IFERROR(FIND(作業!$B$5,名言集!C167),IFERROR(FIND(作業!$B$5,名言集!D167),"")) -> 1 | B167: 167 | C167: 楽しいから笑うのではない。笑うから楽しいのだ。 | D167: ウィリアム・ジェームズ | E167: 米国の哲学者、心理学者 / 1842～1910
A168: =IFERROR(FIND(作業!$B$5,名言集!C168),IFERROR(FIND(作業!$B$5,名言集!D168),"")) -> 1 | B168: 168 | C168: 行動は必ずしも幸福をもたらすものではない。しかし、行動のないところに幸福はない。 | D168: ベンジャミン・ディズレーリ | E168: 英国の政治家、小説家 / 1804～1881
A169: =IFERROR(FIND(作業!$B$5,名言集!C169),IFERROR(FIND(作業!$B$5,名言集!D169),"")) -> 1 | B169: 169 | C169: 詩人にとって最大の悲劇は、誤解によって賞嘆されることだ。 | D169: ジャン・コクトー | E169: フランスの詩人、小説家、芸術家 / 1889～1963
A170: =IFERROR(FIND(作業!$B$5,名言集!C170),IFERROR(FIND(作業!$B$5,名言集!D170),"")) -> 1 | B170: 170 | C170: ささいなことが完璧を生む。しかし、完璧はささいなことではない。 | D170: ミケランジェロ | E170: イタリアのルネサンス期の芸術家 / 1475～1564
A171: =IFERROR(FIND(作業!$B$5,名言集!C171),IFERROR(FIND(作業!$B$5,名言集!D171),"")) -> 1 | B171: 171 | C171: 経験を賢く生かすならば、何事も無駄ではない。 | D171: ロダン | E171: フランスの彫刻家『考える人』の作者 / 1840～1917
A172: =IFERROR(FIND(作業!$B$5,名言集!C172),IFERROR(FIND(作業!$B$5,名言集!D172),"")) -> 1 | B172: 172 | C172: 恋が芽生えるには、ごく少量の希望があれば十分である。 | D172: スタンダール | E172: フランスの小説家『赤と黒』著者 / 1783～1842
A173: =IFERROR(FIND(作業!$B$5,名言集!C173),IFERROR(FIND(作業!$B$5,名言集!D173),"")) -> 1 | B173: 173 | C173: 君が笑えば、世界は君とともに笑う。君が泣けば、君は一人きりで泣くのだ。 | D173: エラ・ウィーラー・ウィルコックス | E173: 米国の女性作家、詩人 / 1850～1919
A174: =IFERROR(FIND(作業!$B$5,名言集!C174),IFERROR(FIND(作業!$B$5,名言集!D174),"")) -> 1 | B174: 174 | C174: あなたにできることをしなさい。今あるもので、今いる場所で。 | D174: セオドア・ルーズベルト | E174: 米国の第26代大統領 / 1858～1919
A175: =IFERROR(FIND(作業!$B$5,名言集!C175),IFERROR(FIND(作業!$B$5,名言集!D175),"")) -> 1 | B175: 175 | C175: いやしくも天下に一事一物を成し遂げようとすれば、命懸けのことは始終ある。依頼心を起こしてはならぬ。自力でやれ。 | D175: 伊藤博文 | E175: 長州藩士、政治家、初代内閣総理大臣 / 1841～1909
A176: =IFERROR(FIND(作業!$B$5,名言集!C176),IFERROR(FIND(作業!$B$5,名言集!D176),"")) -> 1 | B176: 176 | C176: 腹を立つるは、道にあらず候 | D176: 山岡鉄舟 | E176: 幕末の幕臣、政治家、思想家 / 1836～1888
A177: =IFERROR(FIND(作業!$B$5,名言集!C177),IFERROR(FIND(作業!$B$5,名言集!D177),"")) -> 1 | B177: 177 | C177: 愛が死ぬのは、愛の成長が止まる、その瞬間である。 | D177: パール・バック | E177: 米国の女性小説家、ノーベル文学賞受賞 / 1892～1973
A178: =IFERROR(FIND(作業!$B$5,名言集!C178),IFERROR(FIND(作業!$B$5,名言集!D178),"")) -> 1 | B178: 178 | C178: わたしたちは多くの敗北に出くわすでしょう。でも、打ち負かされてはいけないのです。 | D178: マヤ・アンジェロウ | E178: 米国の詩人、作家、公民権運動家 / 1928～2014
A179: =IFERROR(FIND(作業!$B$5,名言集!C179),IFERROR(FIND(作業!$B$5,名言集!D179),"")) -> 1 | B179: 179 | C179: 人生は決して後戻りできません。進めるのは前だけです。人生は一方通行なのですよ。 | D179: アガサ・クリスティ | E179: 英国の推理作家 / 1890～1976
A180: =IFERROR(FIND(作業!$B$5,名言集!C180),IFERROR(FIND(作業!$B$5,名言集!D180),"")) -> 1 | B180: 180 | C180: 良い人生を送るための最も重要な条件。それは、自分自身のイメージを持たないで生きること。 | D180: アイリス・マードック | E180: アイルランドの女性作家、哲学者、詩人 / 1919～1999
A181: =IFERROR(FIND(作業!$B$5,名言集!C181),IFERROR(FIND(作業!$B$5,名言集!D181),"")) -> 1 | B181: 181 | C181: 推考しないものは偏屈者、推考できないものは愚か者、推考する勇気を持たぬものは奴隷である。 | D181: バイロン | E181: 英国の詩人 / 1788～1824
A182: =IFERROR(FIND(作業!$B$5,名言集!C182),IFERROR(FIND(作業!$B$5,名言集!D182),"")) -> 1 | B182: 182 | C182: 他人に費やされた日は、自分の日を浪費したことにならない。 | D182: チャールズ・ディケンズ | E182: 英国の小説家 / 1812～1870
A183: =IFERROR(FIND(作業!$B$5,名言集!C183),IFERROR(FIND(作業!$B$5,名言集!D183),"")) -> 1 | B183: 183 | C183: 優しさこそ、ほんとうの強さだ。 | D183: ジェームズ・ディーン | E183: 米国の俳優 / 1931～1955
A184: =IFERROR(FIND(作業!$B$5,名言集!C184),IFERROR(FIND(作業!$B$5,名言集!D184),"")) -> 1 | B184: 184 | C184: 運命は我々の行動の半分を支配し、残りの半分を我々自身にゆだねている。 | D184: マキャヴェッリ | E184: イタリアの政治思想家、外交官 / 1469～1527
A185: =IFERROR(FIND(作業!$B$5,名言集!C185),IFERROR(FIND(作業!$B$5,名言集!D185),"")) -> 1 | B185: 185 | C185: 失敗は、それを認める勇気さえあれば、いつでも許されるものだ。 | D185: ブルース・リー | E185: 香港の中国武術家、俳優、脚本家 / 1940～1973
A186: =IFERROR(FIND(作業!$B$5,名言集!C186),IFERROR(FIND(作業!$B$5,名言集!D186),"")) -> 1 | B186: 186 | C186: 内なる自分を見つめると、実は望んでいるものをちゃんと所有していることがわかる。 | D186: シモーヌ・ヴェイユ | E186: フランスの女性哲学者 / 1909～1943
A187: =IFERROR(FIND(作業!$B$5,名言集!C187),IFERROR(FIND(作業!$B$5,名言集!D187),"")) -> 1 | B187: 187 | C187: 行動する前から叩かれてしまうこともあります。それでも行動するのがほんとうの勇気です。 | D187: ハーパー・リー | E187: 米国の小説家 / 1926～2016
A188: =IFERROR(FIND(作業!$B$5,名言集!C188),IFERROR(FIND(作業!$B$5,名言集!D188),"")) -> 1 | B188: 188 | C188: 大事なのは今までのあなたじゃなく、これからのあなた。 | D188: エラ・フィッツジェラルド | E188: 米国の女性ジャズ・シンガー / 1917～1996
A189: =IFERROR(FIND(作業!$B$5,名言集!C189),IFERROR(FIND(作業!$B$5,名言集!D189),"")) -> 1 | B189: 189 | C189: 逆境は最良のスパーリング・パートナーです。 | D189: ゴルダ・メイア | E189: イスラエルの元女性首相 / 1898～1978
A190: =IFERROR(FIND(作業!$B$5,名言集!C190),IFERROR(FIND(作業!$B$5,名言集!D190),"")) -> 1 | B190: 190 | C190: どうあろうと、明日という日がある。 | D190: マーガレット・ミッチェル | E190: 米国の小説家『風と共に去りぬ』著者 / 1900～1949
A191: =IFERROR(FIND(作業!$B$5,名言集!C191),IFERROR(FIND(作業!$B$5,名言集!D191),"")) -> 1 | B191: 191 | C191: 勝利への道が困難であればあるほど、勝ったときの喜びは大きくなる。 | D191: ペレ | E191: ブラジルの元サッカー選手、サッカーの王様と称される / 1940～
A192: =IFERROR(FIND(作業!$B$5,名言集!C192),IFERROR(FIND(作業!$B$5,名言集!D192),"")) -> 1 | B192: 192 | C192: 良いものでも、悪いものでも、人生での経験には感謝しましょう。 | D192: スザンヌ・サマーズ | E192: 米国の女優、作家 / 1946～
A193: =IFERROR(FIND(作業!$B$5,名言集!C193),IFERROR(FIND(作業!$B$5,名言集!D193),"")) -> 1 | B193: 193 | C193: 長く生きるほどにより多く目にしてきたことは、怒りの感情を抱えることが、その人を最も消耗させるということです。 | D193: キャサリン・グラハム | E193: 米国の経営者、ワシントン・ポスト社長 / 1917～2001
A194: =IFERROR(FIND(作業!$B$5,名言集!C194),IFERROR(FIND(作業!$B$5,名言集!D194),"")) -> 1 | B194: 194 | C194: あなたの人生をかわりに生きてくれる人はいないわ。 | D194: ドリー・パートン | E194: 米国のシンガーソングライター、女優 / 1946～
A195: =IFERROR(FIND(作業!$B$5,名言集!C195),IFERROR(FIND(作業!$B$5,名言集!D195),"")) -> 1 | B195: =IF(A195="",B194,B194+1) -> 195 | C195: 友情の絆は、いくら使ってもぼろぼろにはならない。 | D195: ドロシー・パーカー | E195: 米国の短編作家、風刺詩人、評論家 / 1893～1967
A196: =IFERROR(FIND(作業!$B$5,名言集!C196),IFERROR(FIND(作業!$B$5,名言集!D196),"")) -> 1 | B196: 196 | C196: 変革せよ。変革を迫られる前に。 | D196: ジャック・ウェルチ | E196: 米国の経営者 / 1935～
A197: =IFERROR(FIND(作業!$B$5,名言集!C197),IFERROR(FIND(作業!$B$5,名言集!D197),"")) -> 1 | B197: 197 | C197: 自分のことを笑えるようになるまでは、決して幸せにはなれない。 | D197: ドロシー・ディックス | E197: 米国のジャーナリスト / 1861～1951
A198: =IFERROR(FIND(作業!$B$5,名言集!C198),IFERROR(FIND(作業!$B$5,名言集!D198),"")) -> 1 | B198: 198 | C198: 自負、嫉妬、貧欲。これらは人の心に火を放つ火花である。 | D198: ダンテ | E198: イタリアの詩人、哲学者、政治家 / 1265～1321
A199: =IFERROR(FIND(作業!$B$5,名言集!C199),IFERROR(FIND(作業!$B$5,名言集!D199),"")) -> 1 | B199: 199 | C199: 心の優雅さがなければ、エレガンスはない。 | D199: イヴ・サン＝ローラン | E199: フランスのファッションデザイナー / 1936～2008
A200: =IFERROR(FIND(作業!$B$5,名言集!C200),IFERROR(FIND(作業!$B$5,名言集!D200),"")) -> 1 | B200: 200 | C200: 見返りを求めずに誰にでも親切にすること。だってあなたにも同じことをしてくれる人がいるかもしれないんだから。 | D200: ダイアナ妃 | E200: 英国チャールズ皇太子の元妃 / 1961～1997
... 822 more rows
